{"text_format":"1","workbook":"xlsx","n_sheets":3,"sheets":["Лист1","Лист2","Лист3"],"not_rendered":{"charts":0,"images":0,"macros":1,"external_links":0,"defined_names":1,"comments":0,"pivot_tables":0},"unopened":[],"bounds":{"document_bytes":16777216,"sheet_cells":100000,"rows_first":2000,"rows_last":500,"rows_between":2000,"halvings":0,"cell_chars":16384,"cell_head_chars":4096},"cells_cut":0,"cells_raw":0,"read":"whole","date_system":"1900"}

{"sheet":"Лист1","index":0,"n_rows":103,"n_cols":141,"rows_kept":103,"cut":false,"hidden":false,"merged":[]}
["ОПКР 23.12.2013 № 1354","ОПКР 30.06.2014 № 540","ОПКР 09.02.2015 № 86","ОПКР 30.11.2015 № 1014","ОПКР 20.06.2016 № 537","ОПКР 28.11.2016 № 1067","2016-12-01","2017-01-01","2017-02-01","2017-03-01","2017-04-01","2017-05-01","2017-06-01","ОПКР 10.07.2017 № 618","2017-08-01","2017-09-01","2017-10-01","2017-11-01","2017-12-01","2018-01-01","2018-02-01","2018-03-01","2018-04-01","2018-05-01","2018-06-01","2018-07-01","2018-08-01","2018-09-01","2018-10-01","2018-11-01","ОПКР 30.11.2018 № 1057","2018-12-01","2019-01-01","2019-02-01","2019-03-01","ОПКР 01.04.2019 № 328","2019-04-01","2019-05-01","2019-06-01","2019-07-01","2019-08-01","2019-09-01","2019-10-01","2019-11-01","2019-12-01","2020-01-01","ОПКР 20.01.2020 № 26","2020-02-01","2020-03-01","2020-04-01","2020-05-01","2020-06-01","2020-07-01","ОПКР 27.07.2020 № 811","2020-08-01","2020-09-01","2020-10-01","2020-11-01","2020-12-01","ОПКР 28.12.2020 № 1555","2021-01-01","2021-02-01","2021-03-01","2021-04-01","2021-05-01","2021-06-01","2021-07-01","2021-08-01","ОПКР 06.09.2021 № 1064","2021-09-01","2021-10-01","2021-11-01","2021-12-01","2022-01-01","ОПКР 07.02.2022 № 153","2022-02-01","2022-03-01","2022-04-01","2022-05-01","2022-06-01","2022-07-01","2022-08-01","ОПКР 19.09.2022 № 1146","2022-09-01","2022-10-01","2022-11-01","2022-12-01","2023-01-01","2023-02-01","ОПКР 06.03.2023 № 32","2023-03-01","2023-04-01","2023-05-01","2023-06-01","2023-07-01","2023-08-01","2023-09-01","2023-10-01","ОПКР 30.10.2023 № 1224","2023-11-01","2023-12-01","2024-01-01","2024-02-01","ОПКР 05.03.2024 № 253","2024-03-01","2024-04-01","2024-05-01","2024-06-01","2024-07-01","2024-08-01","2024-09-01","2024-10-01","ОПКР 07.11.2024 № 1279","2024-12-01","2025-01-01","2025-02-01","2025-03-01","ОПКР 02.04.2025 № 487","2025-05-01","2025-06-01","2025-07-01","2025-08-01","ОПКР 18.09.2025 № 1311","2025-10-01","2025-11-01","ОПКР 03.12.2025 № 1642","2026-01-01","2026-02-01","2026-03-01","2026-04-01","2026-05-01","2026-06-01","2026-07-01","2026-08-01","2026-09-01","2026-10-01","2026-11-01","2026-12-01","способ формирования","наименование владельца","смена способа"]
["Бережное д, Ветеранов ул, д.2А",{"$f":"\"Бережное д, Ветеранов ул, д.2А\"","v":"Бережное д, Ветеранов ул, д.2А"},{"$f":"\"Бережное с, Ветеранов ул, д.2А\"","v":"Бережное с, Ветеранов ул, д.2А"},{"$f":"\"Бережное с, Ветеранов ул, д.2А\"","v":"Бережное с, Ветеранов ул, д.2А"},{"$f":"\"Бережное с, Ветеранов ул, д.2А\"","v":"Бережное с, Ветеранов ул, д.2А"},"Бережное с, Ветеранов ул, д.2А",null,null,null,null,null,null,null,{"$f":"\"Бережное с, Ветеранов ул, д.2А\"","v":"Бережное с, Ветеранов ул, д.2А"},null,null,null,null,null,null,null,null,null,null,null,null,null,null,null,null,"Бережное с, Ветеранов ул, д. 2А",null,null,null,null,"Бережное с, Ветеранов ул, д. 2А",null,null,null,null,null,null,null,null,null,null,"Бережное с, Ветеранов ул, д. 2А",null,null,null,null,null,null,"Бережное с, Ветеранов ул, д. 2А",null,null,null,null,null,"Бережное с, Ветеранов ул, д. 2А",null,null,null,null,null,null,null,null,"Бережное с, Ветеранов ул, д. 2А",null,null,null,null,null,"Бережное с, Ветеранов ул, д. 2А",null,null,null,null,null,null,null,"Бережное с, Ветеранов ул, д. 2А",null,null,null,null,null,null,"Бережное с, Ветеранов ул, д. 2А",null,null,null,null,null,null,null,null,"Бережное с, Ветеранов ул, д. 2А",null,null,null,null,"Бережное с, Ветеранов ул, д. 2А",null,null,null,null,null,null,null,null,"Бережное с, Ветеранов ул, д. 2А",null,null,null,null,"Бережное с, Ветеранов ул, д. 2А",null,null,null,null,"Бережное с, Ветеранов ул, д. 2А",null,null,"Бережное с, Ветеранов ул, д. 2А",null,null,null,null,null,null,null,null,null,null,null,null,"Общий счет РО+"]
["Бережное д, Совхозная ул, д.7",{"$f":"\"Бережное д, Совхозная ул, д.7\"","v":"Бережное д, Совхозная ул, д.7"},{"$f":"\"Бережное с, Совхозная ул, д.7\"","v":"Бережное с, Совхозная ул, д.7"},{"$f":"\"Бережное с, Совхозная ул, д.7\"","v":"Бережное с, Совхозная ул, д.7"},{"$f":"\"Бережное с, Совхозная ул, д.7\"","v":"Бережное с, Совхозная ул, д.7"},"Бережное с, Совхозная ул, д.7",null,null,null,null,null,null,null,{"$f":"\"Бережное с, Совхозная ул, д.7\"","v":"Бережное с, Совхозная ул, д.7"},null,null,null,null,null,null,null,null,null,null,null,null,null,null,null,null,"Бережное с, Совхозная ул, д. 7",null,null,null,null,"Бережное с, Совхозная ул, д. 7",null,null,null,null,null,null,null,null,null,null,"Бережное с, Совхозная ул, д. 7",null,null,null,null,null,null,"Бережное с, Совхозная ул, д. 7",null,null,null,null,null,"Бережное с, Совхозная ул, д. 7",null,null,null,null,null,null,null,null,"Бережное с, Совхозная ул, д. 7",null,null,null,null,null,"Бережное с, Совхозная ул, д. 7",null,null,null,null,null,null,null,"Бережное с, Совхозная ул, д. 7",null,null,null,null,null,null,"Бережное с, Совхозная ул, д. 7",null,null,null,null,null,null,null,null,"Бережное с, Совхозная ул, д. 7",null,null,null,null,"Бережное с, Совхозная ул, д. 7",null,null,null,null,null,null,null,null,"Бережное с, Совхозная ул, д. 7",null,null,null,null,"Бережное с, Совхозная ул, д. 7",null,null,null,null,"Бережное с, Совхозная ул, д. 7",null,null,"Бережное с, Совхозная ул, д. 7",null,null,null,null,null,null,null,null,null,null,null,null,"Общий счет РО+"]
["Бережное д, Совхозная ул, д.8",{"$f":"\"Бережное д, Совхозная ул, д.8\"","v":"Бережное д, Совхозная ул, д.8"},{"$f":"\"Бережное с, Совхозная ул, д.8\"","v":"Бережное с, Совхозная ул, д.8"},{"$f":"\"Бережное с, Совхозная ул, д.8\"","v":"Бережное с, Совхозная ул, д.8"},{"$f":"\"Бережное с, Совхозная ул, д.8\"","v":"Бережное с, Совхозная ул, д.8"},"Бережное с, Совхозная ул, д.8",null,null,null,null,null,null,null,{"$f":"\"Бережное с, Совхозная ул, д.8\"","v":"Бережное с, Совхозная ул, д.8"},null,null,null,null,null,null,null,null,null,null,null,null,null,null,null,null,"Бережное с, Совхозная ул, д. 8",null,null,null,null,"Бережное с, Совхозная ул, д. 8",null,null,null,null,null,null,null,null,null,null,"Бережное с, Совхозная ул, д. 8",null,null,null,null,null,null,"Бережное с, Совхозная ул, д. 8",null,null,null,null,null,"Бережное с, Совхозная ул, д. 8",null,null,null,null,null,null,null,null,"Бережное с, Совхозная ул, д. 8",null,null,null,null,null,"Бережное с, Совхозная ул, д. 8",null,null,null,null,null,null,null,"Бережное с, Совхозная ул, д. 8",null,null,null,null,null,null,"Бережное с, Совхозная ул, д. 8",null,null,null,null,null,null,null,null,"Бережное с, Совхозная ул, д. 8",null,null,null,null,"Бережное с, Совхозная ул, д. 8",null,null,null,null,null,null,null,null,"Бережное с, Совхозная ул, д. 8",null,null,null,null,"Бережное с, Совхозная ул, д. 8",null,null,null,null,"Бережное с, Совхозная ул, д. 8",null,null,"Бережное с, Совхозная ул, д. 8",null,null,null,null,null,null,null,null,null,null,null,null,"Общий счет РО+"]
["Бережное д, Совхозная ул, д.10",{"$f":"\"Бережное д, Совхозная ул, д.10\"","v":"Бережное д, Совхозная ул, д.10"},{"$f":"\"Бережное с, Совхозная ул, д.10\"","v":"Бережное с, Совхозная ул, д.10"},{"$f":"\"Бережное с, Совхозная ул, д.10\"","v":"Бережное с, Совхозная ул, д.10"},{"$f":"\"Бережное с, Совхозная ул, д.10\"","v":"Бережное с, Совхозная ул, д.10"},"Бережное с, Совхозная ул, д.10",null,null,null,null,null,null,null,{"$f":"\"Бережное с, Совхозная ул, д.10\"","v":"Бережное с, Совхозная ул, д.10"},null,null,null,null,null,null,null,null,null,null,null,null,null,null,null,null,"Бережное с, Совхозная ул, д. 10",null,null,null,null,"Бережное с, Совхозная ул, д. 10",null,null,null,null,null,null,null,null,null,null,"Бережное с, Совхозная ул, д. 10",null,null,null,null,null,null,"Бережное с, Совхозная ул, д. 10",null,null,null,null,null,"Бережное с, Совхозная ул, д. 10",null,null,null,null,null,null,null,null,"Бережное с, Совхозная ул, д. 10",null,null,null,null,null,"Бережное с, Совхозная ул, д. 10",null,null,null,null,null,null,null,"Бережное с, Совхозная ул, д. 10",null,null,null,null,null,null,"Бережное с, Совхозная ул, д. 10",null,null,null,null,null,null,null,null,"Бережное с, Совхозная ул, д. 10",null,null,null,null,"Бережное с, Совхозная ул, д. 10",null,null,null,null,null,null,null,null,"Бережное с, Совхозная ул, д. 10",null,null,null,null,"Бережное с, Совхозная ул, д. 10",null,null,null,null,"Бережное с, Совхозная ул, д. 10",null,null,"Бережное с, Совхозная ул, д. 10",null,null,null,null,null,null,null,null,null,null,null,null,"Общий счет РО+"]
[null,null,null,null,null,null,null,null,null,null,null,null,null,null,null,null,null,null,null,null,null,null,null,null,null,null,null,null,null,null,"Высокое п, Нагорная ул, д. 29",null,null,null,null,"Высокое п, Нагорная ул, д. 29",null,null,null,null,null,null,null,null,null,null,"Высокое п, Нагорная ул, д. 29",null,null,null,null,null,null,"Высокое п, Нагорная ул, д. 29",null,null,null,null,null,"Высокое п, Нагорная ул, д. 29",null,null,null,null,null,null,null,null,"Высокое п, Нагорная ул, д. 29",null,null,null,null,null,"Высокое п, Нагорная ул, д. 29",null,null,null,null,null,null,null,"Высокое п, Нагорная ул, д. 29",null,null,null,null,null,null,"Высокое п, Нагорная ул, д. 29",null,null,null,null,null,null,null,null,"Высокое п, Нагорная ул, д. 29",null,null,null,null,"Высокое п, Нагорная ул, д. 29",null,null,null,null,null,null,null,null,"Высокое п, Нагорная ул, д. 29",null,null,null,null,"Высокое п, Нагорная ул, д. 29",null,null,null,null,"Высокое п, Нагорная ул, д. 29",null,null,"Высокое п, Нагорная ул, д. 29",null,null,null,null,null,null,null,null,null,null,null,null,"Общий счет РО+"]
[null,null,null,null,null,null,null,null,null,null,null,null,null,null,null,null,null,null,null,null,null,null,null,null,null,null,null,null,null,null,"Заднее с, Советская ул, д. 1",null,null,null,null,"Заднее с, Советская ул, д. 1",null,null,null,null,null,null,null,null,null,null,"Заднее с, Советская ул, д. 1",null,null,null,null,null,null,"Заднее с, Советская ул, д. 1",null,null,null,null,null,"Заднее с, Советская ул, д. 1",null,null,null,null,null,null,null,null,"Заднее с, Советская ул, д. 1",null,null,null,null,null,"Заднее с, Советская ул, д. 1",null,null,null,null,null,null,null,"Заднее с, Советская ул, д. 1",null,null,null,null,null,null,"Заднее с, Советская ул, д. 1",null,null,null,null,null,null,null,null,"Заднее с, Советская ул, д. 1",null,null,null,null,"Заднее с, Советская ул, д. 1",null,null,null,null,null,null,null,null,"Заднее с, Советская ул, д. 1",null,null,null,null,"Заднее с, Советская ул, д. 1",null,null,null,null,"Заднее с, Советская ул, д. 1",null,null,"Заднее с, Советская ул, д. 1",null,null,null,null,null,null,null,null,null,null,null,null,"Общий счет РО+"]
["Митенское д, Центральная ул, д.1",{"$f":"\"Митенское д, Центральная ул, д.1\"","v":"Митенское д, Центральная ул, д.1"},{"$f":"\"Митенское д, Центральная ул, д.1\"","v":"Митенское д, Центральная ул, д.1"},{"$f":"\"Митенское д, Центральная ул, д.1\"","v":"Митенское д, Центральная ул, д.1"},{"$f":"\"Митенское д, Центральная ул, д.1\"","v":"Митенское д, Центральная ул, д.1"},"Митенское д, Центральная ул, д.1",null,null,null,null,null,null,null,{"$f":"\"Митенское д, Центральная ул, д.1\"","v":"Митенское д, Центральная ул, д.1"},null,null,null,null,null,null,null,null,null,null,null,null,null,null,null,null,"Митенское д, Центральная ул, д. 1",null,null,null,null,"Митенское д, Центральная ул, д. 1",null,null,null,null,null,null,null,null,null,null,"Митенское д, Центральная ул, д. 1",null,null,null,null,null,null,"Митенское д, Центральная ул, д. 1",null,null,null,null,null,"Митенское д, Центральная ул, д. 1",null,null,null,null,null,null,null,null,"Митенское д, Центральная ул, д. 1",null,null,null,null,null,"Митенское д, Центральная ул, д. 1",null,null,null,null,null,null,null,"Митенское д, Центральная ул, д. 1",null,null,null,null,null,null,"Митенское д, Центральная ул, д. 1",null,null,null,null,null,null,null,null,"Митенское д, Центральная ул, д. 1",null,null,null,null,"Митенское д, Центральная ул, д. 1",null,null,null,null,null,null,null,null,"Митенское д, Центральная ул, д. 1",null,null,null,null,"Митенское д, Центральная ул, д. 1",null,null,null,null,"Митенское д, Центральная ул, д. 1",null,null,"Митенское д, Центральная ул, д. 1",null,null,null,null,null,null,null,null,null,null,null,null,"Общий счет РО+"]
["Митенское д, Центральная ул, д.8",{"$f":"\"Митенское д, Центральная ул, д.8\"","v":"Митенское д, Центральная ул, д.8"},{"$f":"\"Митенское д, Центральная ул, д.8\"","v":"Митенское д, Центральная ул, д.8"},{"$f":"\"Митенское д, Центральная ул, д.8\"","v":"Митенское д, Центральная ул, д.8"},{"$f":"\"Митенское д, Центральная ул, д.8\"","v":"Митенское д, Центральная ул, д.8"},"Митенское д, Центральная ул, д.8",null,null,null,null,null,null,null,{"$f":"\"Митенское д, Центральная ул, д.8\"","v":"Митенское д, Центральная ул, д.8"},null,null,null,null,null,null,null,null,null,null,null,null,null,null,null,null,"Митенское д, Центральная ул, д. 8",null,null,null,null,null,null,null,null,null,null,null,null,null,null,null,null,null,null,null,null,null,null,null,null,null,null,null,null,null,null,null,null,null,null,null,null,null,null,null,null,null,null,null,null,null,null,null,null,null,null,null,null,null,null,null,null,null,null,null,null,null,null,null,null,null,null,null,null,null,null,null,null,null,null,null,null,null,null,null,null,null,null,null,null,null,null,null,null,null,null,null,null,null,null,null,null,null,null,null,null,null,null,null,null,null,null,null,"Общий счет РО - 250,00","Признан аварийным. Заключение № 23 от 24.12.2018г","Исключен 01.04.2019"]
["Никола-Корень с, Заречная ул, д.5",{"$f":"\"Никола-Корень с, Заречная ул, д.5\"","v":"Никола-Корень с, Заречная ул, д.5"},{"$f":"\"Никола-Корень с, Заречная ул, д.5\"","v":"Никола-Корень с, Заречная ул, д.5"},{"$f":"\"Никола-Корень с, Заречная ул, д.5\"","v":"Никола-Корень с, Заречная ул, д.5"},{"$f":"\"Никола-Корень с, Заречная ул, д.5\"","v":"Никола-Корень с, Заречная ул, д.5"},"Никола-Корень с, Заречная ул, д.5",null,null,null,null,null,null,null,{"$f":"\"Никола-Корень с, Заречная ул, д.5\"","v":"Никола-Корень с, Заречная ул, д.5"},null,null,null,null,null,null,null,null,null,null,null,null,null,null,null,null,null,null,null,null,null,null,null,null,null,null,null,null,null,null,null,null,null,null,null,null,null,null,null,null,null,null,null,null,null,null,null,null,null,null,null,null,null,null,null,null,null,null,null,null,null,null,null,null,null,null,null,null,null,null,null,null,null,null,null,null,null,null,null,null,null,null,null,null,null,null,null,null,null,null,null,null,null,null,null,null,null,null,null,null,null,null,null,null,null,null,null,null,null,null,null,null,null,null,null,null,null,null,null,null,null,null,null,null,"Общий счет РО 324,70","признан аварийным. Заключение № 30 от 25.12.2017","Исключен 30.11.2018"]
["Никола-Корень с, Курлаково ул, д.5",{"$f":"\"Никола-Корень с, Курлаково ул, д.5\"","v":"Никола-Корень с, Курлаково ул, д.5"},{"$f":"\"Никола-Корень с, Курлаково ул, д.5\"","v":"Никола-Корень с, Курлаково ул, д.5"},{"$f":"\"Никола-Корень с, Курлаково ул, д.5\"","v":"Никола-Корень с, Курлаково ул, д.5"},{"$f":"\"Никола-Корень с, Курлаково ул, д.5\"","v":"Никола-Корень с, Курлаково ул, д.5"},"Никола-Корень с, Курлаково ул, д.5",null,null,null,null,null,null,null,{"$f":"\"Никола-Корень с, Курлаково ул, д.5\"","v":"Никола-Корень с, Курлаково ул, д.5"},null,null,null,null,null,null,null,null,null,null,null,null,null,null,null,null,"Никола-Корень с, Курлаково ул, д. 5",null,null,null,null,null,null,null,null,null,null,null,null,null,null,null,null,null,null,null,null,null,null,null,null,null,null,null,null,null,null,null,null,null,null,null,null,null,null,null,null,null,null,null,null,null,null,null,null,null,null,null,null,null,null,null,null,null,null,null,null,null,null,null,null,null,null,null,null,null,null,null,null,null,null,null,null,null,null,null,null,null,null,null,null,null,null,null,null,null,null,null,null,null,null,null,null,null,null,null,null,null,null,null,null,null,null,null,"Общий счет РО - 955,70",null,"Исключен 01.04.2019"]
["Никольское с, Окружная ул, д.2",{"$f":"\"Никольское с, Окружная ул, д.2\"","v":"Никольское с, Окружная ул, д.2"},{"$f":"\"Никола-Корень с, Окружная ул, д.2\"","v":"Никола-Корень с, Окружная ул, д.2"},{"$f":"\"Никола-Корень с, Окружная ул, д.2\"","v":"Никола-Корень с, Окружная ул, д.2"},{"$f":"\"Никола-Корень с, Окружная ул, д.2\"","v":"Никола-Корень с, Окружная ул, д.2"},"Никола-Корень с, Окружная ул, д.2",null,null,null,null,null,null,null,{"$f":"\"Никола-Корень с, Окружная ул, д.2\"","v":"Никола-Корень с, Окружная ул, д.2"},null,null,null,null,null,null,null,null,null,null,null,null,null,null,null,null,"Никольское с, Окружная ул, д. 2",null,null,null,null,"Никольское с, Окружная ул, д. 2",null,null,null,null,null,null,null,null,null,null,"Никольское с, Окружная ул, д. 2",null,null,null,null,null,null,"Никольское с, Окружная ул, д. 2",null,null,null,null,null,"Никольское с, Окружная ул, д. 2",null,null,null,null,null,null,null,null,"Никольское с, Окружная ул, д. 2",null,null,null,null,null,"Никольское с, Окружная ул, д. 2",null,null,null,null,null,null,null,"Никольское с, Окружная ул, д. 2",null,null,null,null,null,null,"Никольское с, Окружная ул, д. 2",null,null,null,null,null,null,null,null,"Никольское с, Окружная ул, д. 2",null,null,null,null,"Никольское с, Окружная ул, д. 2",null,null,null,null,null,null,null,null,"Никольское с, Окружная ул, д. 2",null,null,null,null,"Никольское с, Окружная ул, д. 2",null,null,null,null,"Никольское с, Окружная ул, д. 2",null,null,"Никольское с, Окружная ул, д. 2",null,null,null,null,null,null,null,null,null,null,null,null,"Общий счет РО+"]
["Никольское с, Окружная ул, д.4Б",{"$f":"\"Никольское с, Окружная ул, д.4Б\"","v":"Никольское с, Окружная ул, д.4Б"},{"$f":"\"Никола-Корень с, Окружная ул, д.4Б\"","v":"Никола-Корень с, Окружная ул, д.4Б"},{"$f":"\"Никола-Корень с, Окружная ул, д.4Б\"","v":"Никола-Корень с, Окружная ул, д.4Б"},{"$f":"\"Никола-Корень с, Окружная ул, д.4Б\"","v":"Никола-Корень с, Окружная ул, д.4Б"},"Никола-Корень с, Окружная ул, д.4Б",null,null,null,null,null,null,null,{"$f":"\"Никола-Корень с, Окружная ул, д.4Б\"","v":"Никола-Корень с, Окружная ул, д.4Б"},null,null,null,null,null,null,null,null,null,null,null,null,null,null,null,null,"Никольское с, Окружная ул, д. 4Б",null,null,null,null,"Никольское с, Окружная ул, д. 4Б",null,null,null,null,null,null,null,null,null,null,"Никольское с, Окружная ул, д. 4Б",null,null,null,null,null,null,"Никольское с, Окружная ул, д. 4Б",null,null,null,null,null,"Никольское с, Окружная ул, д. 4Б",null,null,null,null,null,null,null,null,"Никольское с, Окружная ул, д. 4Б",null,null,null,null,null,"Никольское с, Окружная ул, д. 4Б",null,null,null,null,null,null,null,"Никольское с, Окружная ул, д. 4Б",null,null,null,null,null,null,"Никольское с, Окружная ул, д. 4Б",null,null,null,null,null,null,null,null,"Никольское с, Окружная ул, д. 4Б",null,null,null,null,"Никольское с, Окружная ул, д. 4Б",null,null,null,null,null,null,null,null,"Никольское с, Окружная ул, д. 4Б",null,null,null,null,"Никольское с, Окружная ул, д. 4Б",null,null,null,null,"Никольское с, Окружная ул, д. 4Б",null,null,"Никольское с, Окружная ул, д. 4Б",null,null,null,null,null,null,null,null,null,null,null,null,"Общий счет РО+"]
["Никольское с, Окружная ул, д.4А",{"$f":"\"Никольское с, Окружная ул, д.4А\"","v":"Никольское с, Окружная ул, д.4А"},{"$f":"\"Никола-Корень с, Окружная ул, д.4А\"","v":"Никола-Корень с, Окружная ул, д.4А"},{"$f":"\"Никола-Корень с, Окружная ул, д.4А\"","v":"Никола-Корень с, Окружная ул, д.4А"},{"$f":"\"Никола-Корень с, Окружная ул, д.4А\"","v":"Никола-Корень с, Окружная ул, д.4А"},"Никола-Корень с, Окружная ул, д.4А",null,null,null,null,null,null,null,{"$f":"\"Никола-Корень с, Окружная ул, д.4А\"","v":"Никола-Корень с, Окружная ул, д.4А"},null,null,null,null,null,null,null,null,null,null,null,null,null,null,null,null,"Никольское с, Окружная ул, д. 4А",null,null,null,null,"Никольское с, Окружная ул, д. 4А",null,null,null,null,null,null,null,null,null,null,"Никольское с, Окружная ул, д. 4А",null,null,null,null,null,null,"Никольское с, Окружная ул, д. 4А",null,null,null,null,null,"Никольское с, Окружная ул, д. 4А",null,null,null,null,null,null,null,null,"Никольское с, Окружная ул, д. 4А",null,null,null,null,null,"Никольское с, Окружная ул, д. 4А",null,null,null,null,null,null,null,"Никольское с, Окружная ул, д. 4А",null,null,null,null,null,null,"Никольское с, Окружная ул, д. 4А",null,null,null,null,null,null,null,null,"Никольское с, Окружная ул, д. 4А",null,null,null,null,"Никольское с, Окружная ул, д. 4А",null,null,null,null,null,null,null,null,"Никольское с, Окружная ул, д. 4А",null,null,null,null,"Никольское с, Окружная ул, д. 4А",null,null,null,null,"Никольское с, Окружная ул, д. 4А",null,null,"Никольское с, Окружная ул, д. 4А",null,null,null,null,null,null,null,null,null,null,null,null,"Общий счет РО+"]
["Никольское с, Окружная ул, д.4В",{"$f":"\"Никольское с, Окружная ул, д.4В\"","v":"Никольское с, Окружная ул, д.4В"},{"$f":"\"Никола-Корень с, Окружная ул, д.4В\"","v":"Никола-Корень с, Окружная ул, д.4В"},{"$f":"\"Никола-Корень с, Окружная ул, д.4В\"","v":"Никола-Корень с, Окружная ул, д.4В"},{"$f":"\"Никола-Корень с, Окружная ул, д.4В\"","v":"Никола-Корень с, Окружная ул, д.4В"},"Никола-Корень с, Окружная ул, д.4В",null,null,null,null,null,null,null,{"$f":"\"Никола-Корень с, Окружная ул, д.4В\"","v":"Никола-Корень с, Окружная ул, д.4В"},null,null,null,null,null,null,null,null,null,null,null,null,null,null,null,null,"Никольское с, Окружная ул, д. 4В",null,null,null,null,"Никольское с, Окружная ул, д. 4В",null,null,null,null,null,null,null,null,null,null,"Никольское с, Окружная ул, д. 4В",null,null,null,null,null,null,"Никольское с, Окружная ул, д. 4В",null,null,null,null,null,"Никольское с, Окружная ул, д. 4В",null,null,null,null,null,null,null,null,"Никольское с, Окружная ул, д. 4В",null,null,null,null,null,"Никольское с, Окружная ул, д. 4В",null,null,null,null,null,null,null,"Никольское с, Окружная ул, д. 4В",null,null,null,null,null,null,"Никольское с, Окружная ул, д. 4В",null,null,null,null,null,null,null,null,"Никольское с, Окружная ул, д. 4В",null,null,null,null,"Никольское с, Окружная ул, д. 4В",null,null,null,null,null,null,null,null,"Никольское с, Окружная ул, д. 4В",null,null,null,null,"Никольское с, Окружная ул, д. 4В",null,null,null,null,"Никольское с, Окружная ул, д. 4В",null,null,"Никольское с, Окружная ул, д. 4В",null,null,null,null,null,null,null,null,null,null,null,null,"Общий счет РО+"]
["д. Порохово, Полевая ул, д.11",{"$f":"\"д. Порохово, Полевая ул, д.11\"","v":"д. Порохово, Полевая ул, д.11"},{"$f":"\"Порохово д, Полевая ул, д.11\"","v":"Порохово д, Полевая ул, д.11"},{"$f":"\"Порохово д, Полевая ул, д.11\"","v":"Порохово д, Полевая ул, д.11"},{"$f":"\"Порохово д, Полевая ул, д.11\"","v":"Порохово д, Полевая ул, д.11"},"Порохово д, Полевая ул, д.11",null,null,null,null,null,null,null,{"$f":"\"Порохово д, Полевая ул, д.11\"","v":"Порохово д, Полевая ул, д.11"},null,null,null,null,null,null,null,null,null,null,null,null,null,null,null,null,"Порохово д, Полевая ул, д. 11",null,null,null,null,"Порохово д, Полевая ул, д. 11",null,null,null,null,null,null,null,null,null,null,"Порохово д, Полевая ул, д. 11",null,null,null,null,null,null,"Порохово д, Полевая ул, д. 11",null,null,null,null,null,"Порохово д, Полевая ул, д. 11",null,null,null,null,null,null,null,null,"Порохово д, Полевая ул, д. 11",null,null,null,null,null,"Порохово д, Полевая ул, д. 11",null,null,null,null,null,null,null,"Порохово д, Полевая ул, д. 11",null,null,null,null,null,null,"Порохово д, Полевая ул, д. 11",null,null,null,null,null,null,null,null,"Порохово д, Полевая ул, д. 11",null,null,null,null,"Порохово д, Полевая ул, д. 11",null,null,null,null,null,null,null,null,"Порохово д, Полевая ул, д. 11",null,null,null,null,"Порохово д, Полевая ул, д. 11",null,null,null,null,"Порохово д, Полевая ул, д. 11",null,null,"Порохово д, Полевая ул, д. 11",null,null,null,null,null,null,null,null,null,null,null,null,"Общий счет РО+"]
["Устье с, Зеленая ул, д.7",{"$f":"\"Устье с, Зеленая ул, д.7\"","v":"Устье с, Зеленая ул, д.7"},{"$f":"\"Устье с, Зеленая ул, д.7\"","v":"Устье с, Зеленая ул, д.7"},{"$f":"\"Устье с, Зеленая ул, д.7\"","v":"Устье с, Зеленая ул, д.7"},{"$f":"\"Устье с, Зеленая ул, д.7\"","v":"Устье с, Зеленая ул, д.7"},"Устье с, Зеленая ул, д.7",null,null,null,null,null,null,null,{"$f":"\"Устье с, Зеленая ул, д.7\"","v":"Устье с, Зеленая ул, д.7"},null,null,null,null,null,null,null,null,null,null,null,null,null,null,null,null,"Устье с, Зеленая ул, д. 7",null,null,null,null,"Устье с, Зеленая ул, д. 7",null,null,null,null,null,null,null,null,null,null,"Устье с, Зеленая ул, д. 7",null,null,null,null,null,null,"Устье с, Зеленая ул, д. 7",null,null,null,null,null,"Устье с, Зеленая ул, д. 7",null,null,null,null,null,null,null,null,"Устье с, Зеленая ул, д. 7",null,null,null,null,null,"Устье с, Зеленая ул, д. 7",null,null,null,null,null,null,null,"Устье с, Зеленая ул, д. 7",null,null,null,null,null,null,"Устье с, Зеленая ул, д. 7",null,null,null,null,null,null,null,null,"Устье с, Зеленая ул, д. 7",null,null,null,null,"Устье с, Зеленая ул, д. 7",null,null,null,null,null,null,null,null,"Устье с, Зеленая ул, д. 7",null,null,null,null,"Устье с, Зеленая ул, д. 7",null,null,null,null,"Устье с, Зеленая ул, д. 7",null,null,"Устье с, Зеленая ул, д. 7",null,null,null,null,null,null,null,null,null,null,null,null,"Общий счет РО+"]
["Устье с, Зеленая ул, д.8",{"$f":"\"Устье с, Зеленая ул, д.8\"","v":"Устье с, Зеленая ул, д.8"},{"$f":"\"Устье с, Зеленая ул, д.8\"","v":"Устье с, Зеленая ул, д.8"},{"$f":"\"Устье с, Зеленая ул, д.8\"","v":"Устье с, Зеленая ул, д.8"},{"$f":"\"Устье с, Зеленая ул, д.8\"","v":"Устье с, Зеленая ул, д.8"},"Устье с, Зеленая ул, д.8",null,null,null,null,null,null,null,{"$f":"\"Устье с, Зеленая ул, д.8\"","v":"Устье с, Зеленая ул, д.8"},null,null,null,null,null,null,null,null,null,null,null,null,null,null,null,null,"Устье с, Зеленая ул, д. 8",null,null,null,null,"Устье с, Зеленая ул, д. 8",null,null,null,null,null,null,null,null,null,null,"Устье с, Зеленая ул, д. 8",null,null,null,null,null,null,"Устье с, Зеленая ул, д. 8",null,null,null,null,null,"Устье с, Зеленая ул, д. 8",null,null,null,null,null,null,null,null,"Устье с, Зеленая ул, д. 8",null,null,null,null,null,"Устье с, Зеленая ул, д. 8",null,null,null,null,null,null,null,"Устье с, Зеленая ул, д. 8",null,null,null,null,null,null,"Устье с, Зеленая ул, д. 8",null,null,null,null,null,null,null,null,"Устье с, Зеленая ул, д. 8",null,null,null,null,"Устье с, Зеленая ул, д. 8",null,null,null,null,null,null,null,null,"Устье с, Зеленая ул, д. 8",null,null,null,null,"Устье с, Зеленая ул, д. 8",null,null,null,null,"Устье с, Зеленая ул, д. 8",null,null,"Устье с, Зеленая ул, д. 8",null,null,null,null,null,null,null,null,null,null,null,null,"Общий счет РО+"]
["Устье с, Зеленая ул, д.9",{"$f":"\"Устье с, Зеленая ул, д.9\"","v":"Устье с, Зеленая ул, д.9"},{"$f":"\"Устье с, Зеленая ул, д.9\"","v":"Устье с, Зеленая ул, д.9"},{"$f":"\"Устье с, Зеленая ул, д.9\"","v":"Устье с, Зеленая ул, д.9"},{"$f":"\"Устье с, Зеленая ул, д.9\"","v":"Устье с, Зеленая ул, д.9"},"Устье с, Зеленая ул, д.9",null,null,null,null,null,null,null,{"$f":"\"Устье с, Зеленая ул, д.9\"","v":"Устье с, Зеленая ул, д.9"},null,null,null,null,null,null,null,null,null,null,null,null,null,null,null,null,"Устье с, Зеленая ул, д. 9",null,null,null,null,"Устье с, Зеленая ул, д. 9",null,null,null,null,null,null,null,null,null,null,"Устье с, Зеленая ул, д. 9",null,null,null,null,null,null,"Устье с, Зеленая ул, д. 9",null,null,null,null,null,"Устье с, Зеленая ул, д. 9",null,null,null,null,null,null,null,null,"Устье с, Зеленая ул, д. 9",null,null,null,null,null,"Устье с, Зеленая ул, д. 9",null,null,null,null,null,null,null,"Устье с, Зеленая ул, д. 9",null,null,null,null,null,null,null,null,null,null,null,null,null,null,null,null,null,null,null,null,null,null,null,null,null,null,null,null,null,null,null,null,null,null,null,null,null,null,null,null,null,null,null,null,null,null,null,null,null,null,null,null,null,null,null,"Общий счет РО-326,20","Признан аварийным. Постановление № 331 от 25.04.2022","Исключен 06.03.2023"]
["Устье с, Зеленая ул, д.10",{"$f":"\"Устье с, Зеленая ул, д.10\"","v":"Устье с, Зеленая ул, д.10"},{"$f":"\"Устье с, Зеленая ул, д.10\"","v":"Устье с, Зеленая ул, д.10"},{"$f":"\"Устье с, Зеленая ул, д.10\"","v":"Устье с, Зеленая ул, д.10"},{"$f":"\"Устье с, Зеленая ул, д.10\"","v":"Устье с, Зеленая ул, д.10"},"Устье с, Зеленая ул, д.10",null,null,null,null,null,null,null,{"$f":"\"Устье с, Зеленая ул, д.10\"","v":"Устье с, Зеленая ул, д.10"},null,null,null,null,null,null,null,null,null,null,null,null,null,null,null,null,null,null,null,null,null,null,null,null,null,null,null,null,null,null,null,null,null,null,null,null,null,null,null,null,null,null,null,null,null,null,null,null,null,null,null,null,null,null,null,null,null,null,null,null,null,null,null,null,null,null,null,null,null,null,null,null,null,null,null,null,null,null,null,null,null,null,null,null,null,null,null,null,null,null,null,null,null,null,null,null,null,null,null,null,null,null,null,null,null,null,null,null,null,null,null,null,null,null,null,null,null,null,null,null,null,null,null,null,"Общий счет РО 519,70","Признан аварийным. Заключение № 21 от 11.12.2017г.","Исключен 30.11.2018"]
["Устье с, Зеленая ул, д.11",{"$f":"\"Устье с, Зеленая ул, д.11\"","v":"Устье с, Зеленая ул, д.11"},{"$f":"\"Устье с, Зеленая ул, д.11\"","v":"Устье с, Зеленая ул, д.11"},{"$f":"\"Устье с, Зеленая ул, д.11\"","v":"Устье с, Зеленая ул, д.11"},{"$f":"\"Устье с, Зеленая ул, д.11\"","v":"Устье с, Зеленая ул, д.11"},"Устье с, Зеленая ул, д.11",null,null,null,null,null,null,null,{"$f":"\"Устье с, Зеленая ул, д.11\"","v":"Устье с, Зеленая ул, д.11"},null,null,null,null,null,null,null,null,null,null,null,null,null,null,null,null,"Устье с, Зеленая ул, д. 11",null,null,null,null,"Устье с, Зеленая ул, д. 11",null,null,null,null,null,null,null,null,null,null,"Устье с, Зеленая ул, д. 11",null,null,null,null,null,null,null,null,null,null,null,null,null,null,null,null,null,null,null,null,null,null,null,null,null,null,null,null,null,null,null,null,null,null,null,null,null,null,null,null,null,null,null,null,null,null,null,null,null,null,null,null,null,null,null,null,null,null,null,null,null,null,null,null,null,null,null,null,null,null,null,null,null,null,null,null,null,null,null,null,null,null,null,null,null,null,null,null,null,null,null,"Общий счет РО - 317,50","Признан аварийным. Заключение № 21 от 09.12.2019","Исключен 27.07.2020"]
["Устье с, Зеленая ул, д.12",{"$f":"\"Устье с, Зеленая ул, д.12\"","v":"Устье с, Зеленая ул, д.12"},{"$f":"\"Устье с, Зеленая ул, д.12\"","v":"Устье с, Зеленая ул, д.12"},{"$f":"\"Устье с, Зеленая ул, д.12\"","v":"Устье с, Зеленая ул, д.12"},{"$f":"\"Устье с, Зеленая ул, д.12\"","v":"Устье с, Зеленая ул, д.12"},"Устье с, Зеленая ул, д.12",null,null,null,null,null,null,null,{"$f":"\"Устье с, Зеленая ул, д.12\"","v":"Устье с, Зеленая ул, д.12"},null,null,null,null,null,null,null,null,null,null,null,null,null,null,null,null,"Устье с, Зеленая ул, д. 12",null,null,null,null,null,null,null,null,null,null,null,null,null,null,null,null,null,null,null,null,null,null,null,null,null,null,null,null,null,null,null,null,null,null,null,null,null,null,null,null,null,null,null,null,null,null,null,null,null,null,null,null,null,null,null,null,null,null,null,null,null,null,null,null,null,null,null,null,null,null,null,null,null,null,null,null,null,null,null,null,null,null,null,null,null,null,null,null,null,null,null,null,null,null,null,null,null,null,null,null,null,null,null,null,null,null,null,"Общий счет РО - 519,20","Признан аварийным. Заключение № 19 от 06.12.2018","Исключен 01.04.2019"]
["Устье с, Зеленая ул, д.13",{"$f":"\"Устье с, Зеленая ул, д.13\"","v":"Устье с, Зеленая ул, д.13"},{"$f":"\"Устье с, Зеленая ул, д.13\"","v":"Устье с, Зеленая ул, д.13"},{"$f":"\"Устье с, Зеленая ул, д.13\"","v":"Устье с, Зеленая ул, д.13"},{"$f":"\"Устье с, Зеленая ул, д.13\"","v":"Устье с, Зеленая ул, д.13"},"Устье с, Зеленая ул, д.13",null,null,null,null,null,null,null,{"$f":"\"Устье с, Зеленая ул, д.13\"","v":"Устье с, Зеленая ул, д.13"},null,null,null,null,null,null,null,null,null,null,null,null,null,null,null,null,"Устье с, Зеленая ул, д. 13",null,null,null,null,"Устье с, Зеленая ул, д. 13",null,null,null,null,null,null,null,null,null,null,"Устье с, Зеленая ул, д. 13",null,null,null,null,null,null,"Устье с, Зеленая ул, д. 13",null,null,null,null,null,"Устье с, Зеленая ул, д. 13",null,null,null,null,null,null,null,null,"Устье с, Зеленая ул, д. 13",null,null,null,null,null,"Устье с, Зеленая ул, д. 13",null,null,null,null,null,null,null,"Устье с, Зеленая ул, д. 13",null,null,null,null,null,null,"Устье с, Зеленая ул, д. 13",null,null,null,null,null,null,null,null,"Устье с, Зеленая ул, д. 13",null,null,null,null,"Устье с, Зеленая ул, д. 13",null,null,null,null,null,null,null,null,"Устье с, Зеленая ул, д. 13",null,null,null,null,"Устье с, Зеленая ул, д. 13",null,null,null,null,"Устье с, Зеленая ул, д. 13",null,null,"Устье с, Зеленая ул, д. 13",null,null,null,null,null,null,null,null,null,null,null,null,"Общий счет РО+"]
["Устье с, Зеленая ул, д.14А",{"$f":"\"Устье с, Зеленая ул, д.14А\"","v":"Устье с, Зеленая ул, д.14А"},{"$f":"\"Устье с, Зеленая ул, д.14А\"","v":"Устье с, Зеленая ул, д.14А"},{"$f":"\"Устье с, Зеленая ул, д.14А\"","v":"Устье с, Зеленая ул, д.14А"},{"$f":"\"Устье с, Зеленая ул, д.14А\"","v":"Устье с, Зеленая ул, д.14А"},"Устье с, Зеленая ул, д.14А",null,null,null,null,null,null,null,{"$f":"\"Устье с, Зеленая ул, д.14А\"","v":"Устье с, Зеленая ул, д.14А"},null,null,null,null,null,null,null,null,null,null,null,null,null,null,null,null,"Устье с, Зеленая ул, д. 14А",null,null,null,null,"Устье с, Зеленая ул, д. 14А",null,null,null,null,null,null,null,null,null,null,"Устье с, Зеленая ул, д. 14А",null,null,null,null,null,null,"Устье с, Зеленая ул, д. 14А",null,null,null,null,null,"Устье с, Зеленая ул, д. 14А",null,null,null,null,null,null,null,null,"Устье с, Зеленая ул, д. 14А",null,null,null,null,null,"Устье с, Зеленая ул, д. 14А",null,null,null,null,null,null,null,"Устье с, Зеленая ул, д. 14А",null,null,null,null,null,null,"Устье с, Зеленая ул, д. 14А",null,null,null,null,null,null,null,null,"Устье с, Зеленая ул, д. 14А",null,null,null,null,"Устье с, Зеленая ул, д. 14А",null,null,null,null,null,null,null,null,"Устье с, Зеленая ул, д. 14А",null,null,null,null,"Устье с, Зеленая ул, д. 14А",null,null,null,null,"Устье с, Зеленая ул, д. 14А",null,null,"Устье с, Зеленая ул, д. 14А",null,null,null,null,null,null,null,null,null,null,null,null,"Общий счет РО+"]
["Устье с, Зеленая ул, д.14",{"$f":"\"Устье с, Зеленая ул, д.14\"","v":"Устье с, Зеленая ул, д.14"},{"$f":"\"Устье с, Зеленая ул, д.14\"","v":"Устье с, Зеленая ул, д.14"},{"$f":"\"Устье с, Зеленая ул, д.14\"","v":"Устье с, Зеленая ул, д.14"},{"$f":"\"Устье с, Зеленая ул, д.14\"","v":"Устье с, Зеленая ул, д.14"},"Устье с, Зеленая ул, д.14",null,null,null,null,null,null,null,{"$f":"\"Устье с, Зеленая ул, д.14\"","v":"Устье с, Зеленая ул, д.14"},null,null,null,null,null,null,null,null,null,null,null,null,null,null,null,null,"Устье с, Зеленая ул, д. 14",null,null,null,null,"Устье с, Зеленая ул, д. 14",null,null,null,null,null,null,null,null,null,null,"Устье с, Зеленая ул, д. 14",null,null,null,null,null,null,"Устье с, Зеленая ул, д. 14",null,null,null,null,null,"Устье с, Зеленая ул, д. 14",null,null,null,null,null,null,null,null,"Устье с, Зеленая ул, д. 14",null,null,null,null,null,"Устье с, Зеленая ул, д. 14",null,null,null,null,null,null,null,"Устье с, Зеленая ул, д. 14",null,null,null,null,null,null,"Устье с, Зеленая ул, д. 14",null,null,null,null,null,null,null,null,"Устье с, Зеленая ул, д. 14",null,null,null,null,"Устье с, Зеленая ул, д. 14",null,null,null,null,null,null,null,null,"Устье с, Зеленая ул, д. 14",null,null,null,null,"Устье с, Зеленая ул, д. 14",null,null,null,null,"Устье с, Зеленая ул, д. 14",null,null,"Устье с, Зеленая ул, д. 14",null,null,null,null,null,null,null,null,null,null,null,null,"Общий счет РО+"]
["Устье с, Зеленая ул, д.16",{"$f":"\"Устье с, Зеленая ул, д.16\"","v":"Устье с, Зеленая ул, д.16"},{"$f":"\"Устье с, Зеленая ул, д.16\"","v":"Устье с, Зеленая ул, д.16"},{"$f":"\"Устье с, Зеленая ул, д.16\"","v":"Устье с, Зеленая ул, д.16"},{"$f":"\"Устье с, Зеленая ул, д.16\"","v":"Устье с, Зеленая ул, д.16"},"Устье с, Зеленая ул, д.16",null,null,null,null,null,null,null,{"$f":"\"Устье с, Зеленая ул, д.16\"","v":"Устье с, Зеленая ул, д.16"},null,null,null,null,null,null,null,null,null,null,null,null,null,null,null,null,"Устье с, Зеленая ул, д. 16",null,null,null,null,"Устье с, Зеленая ул, д. 16",null,null,null,null,null,null,null,null,null,null,"Устье с, Зеленая ул, д. 16",null,null,null,null,null,null,"Устье с, Зеленая ул, д. 16",null,null,null,null,null,"Устье с, Зеленая ул, д. 16",null,null,null,null,null,null,null,null,"Устье с, Зеленая ул, д. 16",null,null,null,null,null,"Устье с, Зеленая ул, д. 16",null,null,null,null,null,null,null,"Устье с, Зеленая ул, д. 16",null,null,null,null,null,null,"Устье с, Зеленая ул, д. 16",null,null,null,null,null,null,null,null,"Устье с, Зеленая ул, д. 16",null,null,null,null,"Устье с, Зеленая ул, д. 16",null,null,null,null,null,null,null,null,"Устье с, Зеленая ул, д. 16",null,null,null,null,"Устье с, Зеленая ул, д. 16",null,null,null,null,"Устье с, Зеленая ул, д. 16",null,null,"Устье с, Зеленая ул, д. 16",null,null,null,null,null,null,null,null,null,null,null,null,"Общий счет РО+"]
["Устье с, Зеленая ул, д.16А",{"$f":"\"Устье с, Зеленая ул, д.16А\"","v":"Устье с, Зеленая ул, д.16А"},{"$f":"\"Устье с, Зеленая ул, д.16А\"","v":"Устье с, Зеленая ул, д.16А"},{"$f":"\"Устье с, Зеленая ул, д.16А\"","v":"Устье с, Зеленая ул, д.16А"},{"$f":"\"Устье с, Зеленая ул, д.16А\"","v":"Устье с, Зеленая ул, д.16А"},"Устье с, Зеленая ул, д.16А",null,null,null,null,null,null,null,{"$f":"\"Устье с, Зеленая ул, д.16А\"","v":"Устье с, Зеленая ул, д.16А"},null,null,null,null,null,null,null,null,null,null,null,null,null,null,null,null,"Устье с, Зеленая ул, д. 16А",null,null,null,null,"Устье с, Зеленая ул, д. 16А",null,null,null,null,null,null,null,null,null,null,"Устье с, Зеленая ул, д. 16А",null,null,null,null,null,null,"Устье с, Зеленая ул, д. 16А",null,null,null,null,null,"Устье с, Зеленая ул, д. 16А",null,null,null,null,null,null,null,null,"Устье с, Зеленая ул, д. 16А",null,null,null,null,null,"Устье с, Зеленая ул, д. 16А",null,null,null,null,null,null,null,"Устье с, Зеленая ул, д. 16А",null,null,null,null,null,null,"Устье с, Зеленая ул, д. 16А",null,null,null,null,null,null,null,null,"Устье с, Зеленая ул, д. 16А",null,null,null,null,"Устье с, Зеленая ул, д. 16А",null,null,null,null,null,null,null,null,"Устье с, Зеленая ул, д. 16А",null,null,null,null,"Устье с, Зеленая ул, д. 16А",null,null,null,null,"Устье с, Зеленая ул, д. 16А",null,null,"Устье с, Зеленая ул, д. 16А",null,null,null,null,null,null,null,null,null,null,null,null,"Общий счет РО+"]
["Устье с, Зеленая ул, д.17",{"$f":"\"Устье с, Зеленая ул, д.17\"","v":"Устье с, Зеленая ул, д.17"},{"$f":"\"Устье с, Зеленая ул, д.17\"","v":"Устье с, Зеленая ул, д.17"},{"$f":"\"Устье с, Зеленая ул, д.17\"","v":"Устье с, Зеленая ул, д.17"},{"$f":"\"Устье с, Зеленая ул, д.17\"","v":"Устье с, Зеленая ул, д.17"},"Устье с, Зеленая ул, д.17",null,null,null,null,null,null,null,{"$f":"\"Устье с, Зеленая ул, д.17\"","v":"Устье с, Зеленая ул, д.17"},null,null,null,null,null,null,null,null,null,null,null,null,null,null,null,null,"Устье с, Зеленая ул, д. 17",null,null,null,null,"Устье с, Зеленая ул, д. 17",null,null,null,null,null,null,null,null,null,null,"Устье с, Зеленая ул, д. 17",null,null,null,null,null,null,"Устье с, Зеленая ул, д. 17",null,null,null,null,null,"Устье с, Зеленая ул, д. 17",null,null,null,null,null,null,null,null,"Устье с, Зеленая ул, д. 17",null,null,null,null,null,"Устье с, Зеленая ул, д. 17",null,null,null,null,null,null,null,"Устье с, Зеленая ул, д. 17",null,null,null,null,null,null,"Устье с, Зеленая ул, д. 17",null,null,null,null,null,null,null,null,"Устье с, Зеленая ул, д. 17",null,null,null,null,"Устье с, Зеленая ул, д. 17",null,null,null,null,null,null,null,null,"Устье с, Зеленая ул, д. 17",null,null,null,null,"Устье с, Зеленая ул, д. 17",null,null,null,null,"Устье с, Зеленая ул, д. 17",null,null,"Устье с, Зеленая ул, д. 17",null,null,null,null,null,null,null,null,null,null,null,null,"Общий счет РО+"]
["Устье с, Зеленая ул, д.18А",{"$f":"\"Устье с, Зеленая ул, д.18А\"","v":"Устье с, Зеленая ул, д.18А"},{"$f":"\"Устье с, Зеленая ул, д.18А\"","v":"Устье с, Зеленая ул, д.18А"},{"$f":"\"Устье с, Зеленая ул, д.18А\"","v":"Устье с, Зеленая ул, д.18А"},{"$f":"\"Устье с, Зеленая ул, д.18А\"","v":"Устье с, Зеленая ул, д.18А"},"Устье с, Зеленая ул, д.18А",null,null,null,null,null,null,null,{"$f":"\"Устье с, Зеленая ул, д.18А\"","v":"Устье с, Зеленая ул, д.18А"},null,null,null,null,null,null,null,null,null,null,null,null,null,null,null,null,"Устье с, Зеленая ул, д. 18А",null,null,null,null,"Устье с, Зеленая ул, д. 18А",null,null,null,null,null,null,null,null,null,null,"Устье с, Зеленая ул, д. 18А",null,null,null,null,null,null,"Устье с, Зеленая ул, д. 18А",null,null,null,null,null,"Устье с, Зеленая ул, д. 18А",null,null,null,null,null,null,null,null,"Устье с, Зеленая ул, д. 18А",null,null,null,null,null,"Устье с, Зеленая ул, д. 18А",null,null,null,null,null,null,null,"Устье с, Зеленая ул, д. 18А",null,null,null,null,null,null,"Устье с, Зеленая ул, д. 18А",null,null,null,null,null,null,null,null,"Устье с, Зеленая ул, д. 18А",null,null,null,null,"Устье с, Зеленая ул, д. 18А",null,null,null,null,null,null,null,null,"Устье с, Зеленая ул, д. 18А",null,null,null,null,"Устье с, Зеленая ул, д. 18А",null,null,null,null,"Устье с, Зеленая ул, д. 18А",null,null,"Устье с, Зеленая ул, д. 18А",null,null,null,null,null,null,null,null,null,null,null,null,"Общий счет РО+"]
["Устье с, Зеленая ул, д.18",{"$f":"\"Устье с, Зеленая ул, д.18\"","v":"Устье с, Зеленая ул, д.18"},{"$f":"\"Устье с, Зеленая ул, д.18\"","v":"Устье с, Зеленая ул, д.18"},{"$f":"\"Устье с, Зеленая ул, д.18\"","v":"Устье с, Зеленая ул, д.18"},{"$f":"\"Устье с, Зеленая ул, д.18\"","v":"Устье с, Зеленая ул, д.18"},"Устье с, Зеленая ул, д.18",null,null,null,null,null,null,null,{"$f":"\"Устье с, Зеленая ул, д.18\"","v":"Устье с, Зеленая ул, д.18"},null,null,null,null,null,null,null,null,null,null,null,null,null,null,null,null,"Устье с, Зеленая ул, д. 18",null,null,null,null,"Устье с, Зеленая ул, д. 18",null,null,null,null,null,null,null,null,null,null,"Устье с, Зеленая ул, д. 18",null,null,null,null,null,null,"Устье с, Зеленая ул, д. 18",null,null,null,null,null,"Устье с, Зеленая ул, д. 18",null,null,null,null,null,null,null,null,"Устье с, Зеленая ул, д. 18",null,null,null,null,null,"Устье с, Зеленая ул, д. 18",null,null,null,null,null,null,null,"Устье с, Зеленая ул, д. 18",null,null,null,null,null,null,"Устье с, Зеленая ул, д. 18",null,null,null,null,null,null,null,null,"Устье с, Зеленая ул, д. 18",null,null,null,null,"Устье с, Зеленая ул, д. 18",null,null,null,null,null,null,null,null,"Устье с, Зеленая ул, д. 18",null,null,null,null,"Устье с, Зеленая ул, д. 18",null,null,null,null,"Устье с, Зеленая ул, д. 18",null,null,"Устье с, Зеленая ул, д. 18",null,null,null,null,null,null,null,null,null,null,null,null,"Общий счет РО+"]
["Устье с, Зеленая ул, д.20",{"$f":"\"Устье с, Зеленая ул, д.20\"","v":"Устье с, Зеленая ул, д.20"},{"$f":"\"Устье с, Зеленая ул, д.20\"","v":"Устье с, Зеленая ул, д.20"},{"$f":"\"Устье с, Зеленая ул, д.20\"","v":"Устье с, Зеленая ул, д.20"},{"$f":"\"Устье с, Зеленая ул, д.20\"","v":"Устье с, Зеленая ул, д.20"},"Устье с, Зеленая ул, д.20",null,null,null,null,null,null,null,{"$f":"\"Устье с, Зеленая ул, д.20\"","v":"Устье с, Зеленая ул, д.20"},null,null,null,null,null,null,null,null,null,null,null,null,null,null,null,null,"Устье с, Зеленая ул, д. 20",null,null,null,null,"Устье с, Зеленая ул, д. 20",null,null,null,null,null,null,null,null,null,null,"Устье с, Зеленая ул, д. 20",null,null,null,null,null,null,"Устье с, Зеленая ул, д. 20",null,null,null,null,null,null,null,null,null,null,null,null,null,null,null,null,null,null,null,null,null,null,null,null,null,null,null,null,null,null,null,null,null,null,null,null,null,null,null,null,null,null,null,null,null,null,null,null,null,null,null,null,null,null,null,null,null,null,null,null,null,null,null,null,null,null,null,null,null,null,null,null,null,null,null,null,null,null,null,null,null,null,null,null,"Общий счет РО - 509,50","Признан аварийным. Заключение № 24 от 12.12.2019 г.","Исключен 28.12.2020"]
["Устье с, Зеленая ул, д.29",{"$f":"\"Устье с, Зеленая ул, д.29\"","v":"Устье с, Зеленая ул, д.29"},{"$f":"\"Устье с, Зеленая ул, д.29\"","v":"Устье с, Зеленая ул, д.29"},{"$f":"\"Устье с, Зеленая ул, д.29\"","v":"Устье с, Зеленая ул, д.29"},{"$f":"\"Устье с, Зеленая ул, д.29\"","v":"Устье с, Зеленая ул, д.29"},"Устье с, Зеленая ул, д.29",null,null,null,null,null,null,null,{"$f":"\"Устье с, Зеленая ул, д.29\"","v":"Устье с, Зеленая ул, д.29"},null,null,null,null,null,null,null,null,null,null,null,null,null,null,null,null,"Устье с, Зеленая ул, д. 29",null,null,null,null,"Устье с, Зеленая ул, д. 29",null,null,null,null,null,null,null,null,null,null,"Устье с, Зеленая ул, д. 29",null,null,null,null,null,null,"Устье с, Зеленая ул, д. 29",null,null,null,null,null,"Устье с, Зеленая ул, д. 29",null,null,null,null,null,null,null,null,"Устье с, Зеленая ул, д. 29",null,null,null,null,null,"Устье с, Зеленая ул, д. 29",null,null,null,null,null,null,null,"Устье с, Зеленая ул, д. 29",null,null,null,null,null,null,"Устье с, Зеленая ул, д. 29",null,null,null,null,null,null,null,null,"Устье с, Зеленая ул, д. 29",null,null,null,null,"Устье с, Зеленая ул, д. 29",null,null,null,null,null,null,null,null,"Устье с, Зеленая ул, д. 29",null,null,null,null,"Устье с, Зеленая ул, д. 29",null,null,null,null,"Устье с, Зеленая ул, д. 29",null,null,"Устье с, Зеленая ул, д. 29",null,null,null,null,null,null,null,null,null,null,null,null,"Специальный счет РО + учет"]
[null,null,null,null,null,null,null,null,null,null,null,null,null,null,null,null,null,null,null,null,null,null,null,null,null,null,null,null,null,null,"Устье с, Коммунаров ул, д. 17",null,null,null,null,"Устье с, Коммунаров ул, д. 17",null,null,null,null,null,null,null,null,null,null,"Устье с, Коммунаров ул, д. 17",null,null,null,null,null,null,"Устье с, Коммунаров ул, д. 17",null,null,null,null,null,"Устье с, Коммунаров ул, д. 17",null,null,null,null,null,null,null,null,"Устье с, Коммунаров ул, д. 17",null,null,null,null,null,"Устье с, Коммунаров ул, д. 17",null,null,null,null,null,null,null,"Устье с, Коммунаров ул, д. 17",null,null,null,null,null,null,"Устье с, Коммунаров ул, д. 17",null,null,null,null,null,null,null,null,"Устье с, Коммунаров ул, д. 17",null,null,null,null,"Устье с, Коммунаров ул, д. 17",null,null,null,null,null,null,null,null,"Устье с, Коммунаров ул, д. 17",null,null,null,null,"Устье с, Коммунаров ул, д. 17",null,null,null,null,"Устье с, Коммунаров ул, д. 17",null,null,"Устье с, Коммунаров ул, д. 17",null,null,null,null,null,null,null,null,null,null,null,null,"Общий счет РО+"]
[null,null,null,null,null,null,null,null,null,null,null,null,null,null,null,null,null,null,null,null,null,null,null,null,null,null,null,null,null,null,"Устье с, Коничева ул, д. 3",null,null,null,null,"Устье с, Коничева ул, д. 3",null,null,null,null,null,null,null,null,null,null,"Устье с, Коничева ул, д. 3",null,null,null,null,null,null,"Устье с, Коничева ул, д. 3",null,null,null,null,null,"Устье с, Коничева ул, д. 3",null,null,null,null,null,null,null,null,"Устье с, Коничева ул, д. 3",null,null,null,null,null,"Устье с, Коничева ул, д. 3",null,null,null,null,null,null,null,"Устье с, Коничева ул, д. 3",null,null,null,null,null,null,"Устье с, Коничева ул, д. 3",null,null,null,null,null,null,null,null,"Устье с, Коничева ул, д. 3",null,null,null,null,"Устье с, Коничева ул, д. 3",null,null,null,null,null,null,null,null,"Устье с, Коничева ул, д. 3",null,null,null,null,"Устье с, Коничева ул, д. 3",null,null,null,null,"Устье с, Коничева ул, д. 3",null,null,"Устье с, Коничева ул, д. 3",null,null,null,null,null,null,null,null,null,null,null,null,"Специальный счет РО + учет + взыскание",null,"ССРО с 15.11.2023"]
["Устье с, Коничева ул, д.15",null,null,null,null,null,null,null,null,null,null,null,null,null,null,null,null,null,null,null,null,null,null,null,null,null,null,null,null,null,null,null,null,null,null,null,null,null,null,null,null,null,null,null,null,null,null,null,null,null,null,null,null,null,null,null,null,null,null,null,null,null,null,null,null,null,null,null,null,null,null,null,null,null,null,null,null,null,null,null,null,null,null,null,null,null,null,null,null,null,null,null,null,null,null,null,null,null,null,null,null,null,null,null,null,null,null,null,null,null,null,null,null,null,null,null,null,null,null,null,null,null,null,null,null,null,null,null,null,null,null,null,null,null,null,null,null,null,null,null,"Исключен"]
["Устье с, им. Лебедевой ул, д.2",{"$f":"\"Устье с, им. Лебедевой ул, д.2\"","v":"Устье с, им. Лебедевой ул, д.2"},{"$f":"\"Устье с, им. Лебедевой ул, д.2\"","v":"Устье с, им. Лебедевой ул, д.2"},{"$f":"\"Устье с, им. Лебедевой ул, д.2\"","v":"Устье с, им. Лебедевой ул, д.2"},{"$f":"\"Устье с, им. Лебедевой ул, д.2\"","v":"Устье с, им. Лебедевой ул, д.2"},"Устье с, им. Лебедевой ул, д.2",null,null,null,null,null,null,null,{"$f":"\"Устье с, им. Лебедевой ул, д.2\"","v":"Устье с, им. Лебедевой ул, д.2"},null,null,null,null,null,null,null,null,null,null,null,null,null,null,null,null,"Устье с, им Лебедевой ул, д. 2",null,null,null,null,"Устье с, им Лебедевой ул, д. 2",null,null,null,null,null,null,null,null,null,null,"Устье с, Лебедевой ул, д. 2",null,null,null,null,null,null,"Устье с, Лебедевой ул, д. 2",null,null,null,null,null,"Устье с, Лебедевой ул, д. 2",null,null,null,null,null,null,null,null,"Устье с, Лебедевой ул, д. 2",null,null,null,null,null,"Устье с, Лебедевой ул, д. 2",null,null,null,null,null,null,null,"Устье с, Лебедевой ул, д. 2",null,null,null,null,null,null,"Устье с, Лебедевой ул, д. 2",null,null,null,null,null,null,null,null,"Устье с, Лебедевой ул, д. 2",null,null,null,null,"Устье с, Лебедевой ул, д. 2",null,null,null,null,null,null,null,null,"Устье с, Лебедевой ул, д. 2",null,null,null,null,"Устье с, Лебедевой ул, д. 2",null,null,null,null,"Устье с, Лебедевой ул, д. 2",null,null,"Устье с, Лебедевой ул, д. 2",null,null,null,null,null,null,null,null,null,null,null,null,"Общий счет РО+"]
["Устье с, им. Лебедевой ул, д.5",{"$f":"\"Устье с, им. Лебедевой ул, д.5\"","v":"Устье с, им. Лебедевой ул, д.5"},{"$f":"\"Устье с, им. Лебедевой ул, д.5\"","v":"Устье с, им. Лебедевой ул, д.5"},{"$f":"\"Устье с, им. Лебедевой ул, д.5\"","v":"Устье с, им. Лебедевой ул, д.5"},{"$f":"\"Устье с, им. Лебедевой ул, д.5\"","v":"Устье с, им. Лебедевой ул, д.5"},"Устье с, им. Лебедевой ул, д.5",null,null,null,null,null,null,null,{"$f":"\"Устье с, им. Лебедевой ул, д.5\"","v":"Устье с, им. Лебедевой ул, д.5"},null,null,null,null,null,null,null,null,null,null,null,null,null,null,null,null,"Устье с, им Лебедевой ул, д. 5",null,null,null,null,"Устье с, им Лебедевой ул, д. 5",null,null,null,null,null,null,null,null,null,null,"Устье с, Лебедевой ул, д. 5",null,null,null,null,null,null,"Устье с, Лебедевой ул, д. 5",null,null,null,null,null,null,null,null,null,null,null,null,null,null,null,null,null,null,null,null,null,null,null,null,null,null,null,null,null,null,null,null,null,null,null,null,null,null,null,null,null,null,null,null,null,null,null,null,null,null,null,null,null,null,null,null,null,null,null,null,null,null,null,null,null,null,null,null,null,null,null,null,null,null,null,null,null,null,null,null,null,null,null,null,"Общий счет РО - 198,00","Признан аварийным. Постановление № 860 от 03.09.2020","Исключен 28.12.2020"]
["Устье с, им. Лебедевой ул, д.6",{"$f":"\"Устье с, им. Лебедевой ул, д.6\"","v":"Устье с, им. Лебедевой ул, д.6"},{"$f":"\"Устье с, им. Лебедевой ул, д.6\"","v":"Устье с, им. Лебедевой ул, д.6"},{"$f":"\"Устье с, им. Лебедевой ул, д.6\"","v":"Устье с, им. Лебедевой ул, д.6"},{"$f":"\"Устье с, им. Лебедевой ул, д.6\"","v":"Устье с, им. Лебедевой ул, д.6"},"Устье с, им. Лебедевой ул, д.6",null,null,null,null,null,null,null,{"$f":"\"Устье с, им. Лебедевой ул, д.6\"","v":"Устье с, им. Лебедевой ул, д.6"},null,null,null,null,null,null,null,null,null,null,null,null,null,null,null,null,"Устье с, им Лебедевой ул, д. 6",null,null,null,null,"Устье с, им Лебедевой ул, д. 6",null,null,null,null,null,null,null,null,null,null,"Устье с, Лебедевой ул, д. 6",null,null,null,null,null,null,"Устье с, Лебедевой ул, д. 6",null,null,null,null,null,"Устье с, Лебедевой ул, д. 6",null,null,null,null,null,null,null,null,"Устье с, Лебедевой ул, д. 6",null,null,null,null,null,"Устье с, Лебедевой ул, д. 6",null,null,null,null,null,null,null,"Устье с, Лебедевой ул, д. 6",null,null,null,null,null,null,"Устье с, Лебедевой ул, д. 6",null,null,null,null,null,null,null,null,"Устье с, Лебедевой ул, д. 6",null,null,null,null,"Устье с, Лебедевой ул, д. 6",null,null,null,null,null,null,null,null,"Устье с, Лебедевой ул, д. 6",null,null,null,null,"Устье с, Лебедевой ул, д. 6",null,null,null,null,"Устье с, Лебедевой ул, д. 6",null,null,"Устье с, Лебедевой ул, д. 6",null,null,null,null,null,null,null,null,null,null,null,null,"Общий счет РО+"]
["Устье с, им. Лебедевой ул, д.9",{"$f":"\"Устье с, им. Лебедевой ул, д.9\"","v":"Устье с, им. Лебедевой ул, д.9"},{"$f":"\"Устье с, им. Лебедевой ул, д.9\"","v":"Устье с, им. Лебедевой ул, д.9"},{"$f":"\"Устье с, им. Лебедевой ул, д.9\"","v":"Устье с, им. Лебедевой ул, д.9"},{"$f":"\"Устье с, им. Лебедевой ул, д.9\"","v":"Устье с, им. Лебедевой ул, д.9"},"Устье с, им. Лебедевой ул, д.9",null,null,null,null,null,null,null,{"$f":"\"Устье с, им. Лебедевой ул, д.9\"","v":"Устье с, им. Лебедевой ул, д.9"},null,null,null,null,null,null,null,null,null,null,null,null,null,null,null,null,"Устье с, им Лебедевой ул, д. 9",null,null,null,null,"Устье с, им Лебедевой ул, д. 9",null,null,null,null,null,null,null,null,null,null,"Устье с, Лебедевой ул, д. 9",null,null,null,null,null,null,"Устье с, Лебедевой ул, д. 9",null,null,null,null,null,"Устье с, Лебедевой ул, д. 9",null,null,null,null,null,null,null,null,"Устье с, Лебедевой ул, д. 9",null,null,null,null,null,"Устье с, Лебедевой ул, д. 9",null,null,null,null,null,null,null,"Устье с, Лебедевой ул, д. 9",null,null,null,null,null,null,"Устье с, Лебедевой ул, д. 9",null,null,null,null,null,null,null,null,"Устье с, Лебедевой ул, д. 9",null,null,null,null,"Устье с, Лебедевой ул, д. 9",null,null,null,null,null,null,null,null,"Устье с, Лебедевой ул, д. 9",null,null,null,null,"Устье с, Лебедевой ул, д. 9",null,null,null,null,"Устье с, Лебедевой ул, д. 9",null,null,"Устье с, Лебедевой ул, д. 9",null,null,null,null,null,null,null,null,null,null,null,null,"Общий счет РО+"]
["Устье с, им. Лебедевой ул, д.10",{"$f":"\"Устье с, им. Лебедевой ул, д.10\"","v":"Устье с, им. Лебедевой ул, д.10"},{"$f":"\"Устье с, им. Лебедевой ул, д.10\"","v":"Устье с, им. Лебедевой ул, д.10"},{"$f":"\"Устье с, им. Лебедевой ул, д.10\"","v":"Устье с, им. Лебедевой ул, д.10"},{"$f":"\"Устье с, им. Лебедевой ул, д.10\"","v":"Устье с, им. Лебедевой ул, д.10"},"Устье с, им. Лебедевой ул, д.10",null,null,null,null,null,null,null,{"$f":"\"Устье с, им. Лебедевой ул, д.10\"","v":"Устье с, им. Лебедевой ул, д.10"},null,null,null,null,null,null,null,null,null,null,null,null,null,null,null,null,"Устье с, им Лебедевой ул, д. 10",null,null,null,null,"Устье с, им Лебедевой ул, д. 10",null,null,null,null,null,null,null,null,null,null,"Устье с, Лебедевой ул, д. 10",null,null,null,null,null,null,"Устье с, Лебедевой ул, д. 10",null,null,null,null,null,"Устье с, Лебедевой ул, д. 10",null,null,null,null,null,null,null,null,"Устье с, Лебедевой ул, д. 10",null,null,null,null,null,"Устье с, Лебедевой ул, д. 10",null,null,null,null,null,null,null,"Устье с, Лебедевой ул, д. 10",null,null,null,null,null,null,"Устье с, Лебедевой ул, д. 10",null,null,null,null,null,null,null,null,"Устье с, Лебедевой ул, д. 10",null,null,null,null,"Устье с, Лебедевой ул, д. 10",null,null,null,null,null,null,null,null,"Устье с, Лебедевой ул, д. 10",null,null,null,null,"Устье с, Лебедевой ул, д. 10",null,null,null,null,"Устье с, Лебедевой ул, д. 10",null,null,"Устье с, Лебедевой ул, д. 10",null,null,null,null,null,null,null,null,null,null,null,null,"Общий счет РО+"]
["Устье с, Мелиораторов ул, д.3",{"$f":"\"Устье с, Мелиораторов ул, д.3\"","v":"Устье с, Мелиораторов ул, д.3"},{"$f":"\"Устье с, Мелиораторов ул, д.3\"","v":"Устье с, Мелиораторов ул, д.3"},{"$f":"\"Устье с, Мелиораторов ул, д.3\"","v":"Устье с, Мелиораторов ул, д.3"},{"$f":"\"Устье с, Мелиораторов ул, д.3\"","v":"Устье с, Мелиораторов ул, д.3"},"Устье с, Мелиораторов ул, д.3",null,null,null,null,null,null,null,{"$f":"\"Устье с, Мелиораторов ул, д.3\"","v":"Устье с, Мелиораторов ул, д.3"},null,null,null,null,null,null,null,null,null,null,null,null,null,null,null,null,"Устье с, Мелиораторов ул, д. 3",null,null,null,null,"Устье с, Мелиораторов ул, д. 3",null,null,null,null,null,null,null,null,null,null,"Устье с, Мелиораторов ул, д. 3",null,null,null,null,null,null,"Устье с, Мелиораторов ул, д. 3",null,null,null,null,null,"Устье с, Мелиораторов ул, д. 3",null,null,null,null,null,null,null,null,"Устье с, Мелиораторов ул, д. 3",null,null,null,null,null,"Устье с, Мелиораторов ул, д. 3",null,null,null,null,null,null,null,"Устье с, Мелиораторов ул, д. 3",null,null,null,null,null,null,"Устье с, Мелиораторов ул, д. 3",null,null,null,null,null,null,null,null,"Устье с, Мелиораторов ул, д. 3",null,null,null,null,"Устье с, Мелиораторов ул, д. 3",null,null,null,null,null,null,null,null,"Устье с, Мелиораторов ул, д. 3",null,null,null,null,"Устье с, Мелиораторов ул, д. 3",null,null,null,null,"Устье с, Мелиораторов ул, д. 3",null,null,"Устье с, Мелиораторов ул, д. 3",null,null,null,null,null,null,null,null,null,null,null,null,"Общий счет РО+"]
["Устье с, Мелиораторов ул, д.4",{"$f":"\"Устье с, Мелиораторов ул, д.4\"","v":"Устье с, Мелиораторов ул, д.4"},{"$f":"\"Устье с, Мелиораторов ул, д.4\"","v":"Устье с, Мелиораторов ул, д.4"},{"$f":"\"Устье с, Мелиораторов ул, д.4\"","v":"Устье с, Мелиораторов ул, д.4"},{"$f":"\"Устье с, Мелиораторов ул, д.4\"","v":"Устье с, Мелиораторов ул, д.4"},"Устье с, Мелиораторов ул, д.4",null,null,null,null,null,null,null,{"$f":"\"Устье с, Мелиораторов ул, д.4\"","v":"Устье с, Мелиораторов ул, д.4"},null,null,null,null,null,null,null,null,null,null,null,null,null,null,null,null,"Устье с, Мелиораторов ул, д. 4",null,null,null,null,"Устье с, Мелиораторов ул, д. 4",null,null,null,null,null,null,null,null,null,null,"Устье с, Мелиораторов ул, д. 4",null,null,null,null,null,null,"Устье с, Мелиораторов ул, д. 4",null,null,null,null,null,"Устье с, Мелиораторов ул, д. 4",null,null,null,null,null,null,null,null,"Устье с, Мелиораторов ул, д. 4",null,null,null,null,null,"Устье с, Мелиораторов ул, д. 4",null,null,null,null,null,null,null,"Устье с, Мелиораторов ул, д. 4",null,null,null,null,null,null,"Устье с, Мелиораторов ул, д. 4",null,null,null,null,null,null,null,null,"Устье с, Мелиораторов ул, д. 4",null,null,null,null,"Устье с, Мелиораторов ул, д. 4",null,null,null,null,null,null,null,null,"Устье с, Мелиораторов ул, д. 4",null,null,null,null,"Устье с, Мелиораторов ул, д. 4",null,null,null,null,"Устье с, Мелиораторов ул, д. 4",null,null,"Устье с, Мелиораторов ул, д. 4",null,null,null,null,null,null,null,null,null,null,null,null,"Общий счет РО+"]
["Устье с, Мелиораторов ул, д.5",{"$f":"\"Устье с, Мелиораторов ул, д.5\"","v":"Устье с, Мелиораторов ул, д.5"},{"$f":"\"Устье с, Мелиораторов ул, д.5\"","v":"Устье с, Мелиораторов ул, д.5"},{"$f":"\"Устье с, Мелиораторов ул, д.5\"","v":"Устье с, Мелиораторов ул, д.5"},{"$f":"\"Устье с, Мелиораторов ул, д.5\"","v":"Устье с, Мелиораторов ул, д.5"},"Устье с, Мелиораторов ул, д.5",null,null,null,null,null,null,null,{"$f":"\"Устье с, Мелиораторов ул, д.5\"","v":"Устье с, Мелиораторов ул, д.5"},null,null,null,null,null,null,null,null,null,null,null,null,null,null,null,null,"Устье с, Мелиораторов ул, д. 5",null,null,null,null,"Устье с, Мелиораторов ул, д. 5",null,null,null,null,null,null,null,null,null,null,"Устье с, Мелиораторов ул, д. 5",null,null,null,null,null,null,"Устье с, Мелиораторов ул, д. 5",null,null,null,null,null,"Устье с, Мелиораторов ул, д. 5",null,null,null,null,null,null,null,null,"Устье с, Мелиораторов ул, д. 5",null,null,null,null,null,"Устье с, Мелиораторов ул, д. 5",null,null,null,null,null,null,null,"Устье с, Мелиораторов ул, д. 5",null,null,null,null,null,null,"Устье с, Мелиораторов ул, д. 5",null,null,null,null,null,null,null,null,"Устье с, Мелиораторов ул, д. 5",null,null,null,null,"Устье с, Мелиораторов ул, д. 5",null,null,null,null,null,null,null,null,"Устье с, Мелиораторов ул, д. 5",null,null,null,null,"Устье с, Мелиораторов ул, д. 5",null,null,null,null,"Устье с, Мелиораторов ул, д. 5",null,null,"Устье с, Мелиораторов ул, д. 5",null,null,null,null,null,null,null,null,null,null,null,null,"Общий счет РО+",null,"ССРО-ОС с 07.04.2025"]
["Устье с, Мелиораторов ул, д.13",{"$f":"\"Устье с, Мелиораторов ул, д.13\"","v":"Устье с, Мелиораторов ул, д.13"},{"$f":"\"Устье с, Мелиораторов ул, д.13\"","v":"Устье с, Мелиораторов ул, д.13"},{"$f":"\"Устье с, Мелиораторов ул, д.13\"","v":"Устье с, Мелиораторов ул, д.13"},{"$f":"\"Устье с, Мелиораторов ул, д.13\"","v":"Устье с, Мелиораторов ул, д.13"},"Устье с, Мелиораторов ул, д.13",null,null,null,null,null,null,null,{"$f":"\"Устье с, Мелиораторов ул, д.13\"","v":"Устье с, Мелиораторов ул, д.13"},null,null,null,null,null,null,null,null,null,null,null,null,null,null,null,null,"Устье с, Мелиораторов ул, д. 13",null,null,null,null,"Устье с, Мелиораторов ул, д. 13",null,null,null,null,null,null,null,null,null,null,"Устье с, Мелиораторов ул, д. 13",null,null,null,null,null,null,"Устье с, Мелиораторов ул, д. 13",null,null,null,null,null,"Устье с, Мелиораторов ул, д. 13",null,null,null,null,null,null,null,null,"Устье с, Мелиораторов ул, д. 13",null,null,null,null,null,"Устье с, Мелиораторов ул, д. 13",null,null,null,null,null,null,null,"Устье с, Мелиораторов ул, д. 13",null,null,null,null,null,null,"Устье с, Мелиораторов ул, д. 13",null,null,null,null,null,null,null,null,"Устье с, Мелиораторов ул, д. 13",null,null,null,null,"Устье с, Мелиораторов ул, д. 13",null,null,null,null,null,null,null,null,"Устье с, Мелиораторов ул, д. 13",null,null,null,null,"Устье с, Мелиораторов ул, д. 13",null,null,null,null,"Устье с, Мелиораторов ул, д. 13",null,null,"Устье с, Мелиораторов ул, д. 13",null,null,null,null,null,null,null,null,null,null,null,null,"Общий счет РО+"]
[null,null,null,null,null,null,null,null,null,null,null,null,null,null,null,null,null,null,null,null,null,null,null,null,null,null,null,null,null,null,"Устье с, Мелиораторов ул, д. 14А",null,null,null,null,"Устье с, Мелиораторов ул, д. 14А",null,null,null,null,null,null,null,null,null,null,"Устье с, Мелиораторов ул, д. 14А",null,null,null,null,null,null,"Устье с, Мелиораторов ул, д. 14А",null,null,null,null,null,"Устье с, Мелиораторов ул, д. 14А",null,null,null,null,null,null,null,null,"Устье с, Мелиораторов ул, д. 14А",null,null,null,null,null,"Устье с, Мелиораторов ул, д. 14А",null,null,null,null,null,null,null,"Устье с, Мелиораторов ул, д. 14А",null,null,null,null,null,null,"Устье с, Мелиораторов ул, д. 14А",null,null,null,null,null,null,null,null,"Устье с, Мелиораторов ул, д. 14А",null,null,null,null,"Устье с, Мелиораторов ул, д. 14А",null,null,null,null,null,null,null,null,"Устье с, Мелиораторов ул, д. 14А",null,null,null,null,"Устье с, Мелиораторов ул, д. 14А",null,null,null,null,"Устье с, Мелиораторов ул, д. 14А",null,null,"Устье с, Мелиораторов ул, д. 14А",null,null,null,null,null,null,null,null,null,null,null,null,"Общий счет РО+"]
["Устье с, Мелиораторов ул, д.15",{"$f":"\"Устье с, Мелиораторов ул, д.15\"","v":"Устье с, Мелиораторов ул, д.15"},{"$f":"\"Устье с, Мелиораторов ул, д.15\"","v":"Устье с, Мелиораторов ул, д.15"},{"$f":"\"Устье с, Мелиораторов ул, д.15\"","v":"Устье с, Мелиораторов ул, д.15"},{"$f":"\"Устье с, Мелиораторов ул, д.15\"","v":"Устье с, Мелиораторов ул, д.15"},"Устье с, Мелиораторов ул, д.15",null,null,null,null,null,null,null,{"$f":"\"Устье с, Мелиораторов ул, д.15\"","v":"Устье с, Мелиораторов ул, д.15"},null,null,null,null,null,null,null,null,null,null,null,null,null,null,null,null,"Устье с, Мелиораторов ул, д. 15",null,null,null,null,"Устье с, Мелиораторов ул, д. 15",null,null,null,null,null,null,null,null,null,null,"Устье с, Мелиораторов ул, д. 15",null,null,null,null,null,null,"Устье с, Мелиораторов ул, д. 15",null,null,null,null,null,"Устье с, Мелиораторов ул, д. 15",null,null,null,null,null,null,null,null,"Устье с, Мелиораторов ул, д. 15",null,null,null,null,null,"Устье с, Мелиораторов ул, д. 15",null,null,null,null,null,null,null,"Устье с, Мелиораторов ул, д. 15",null,null,null,null,null,null,"Устье с, Мелиораторов ул, д. 15",null,null,null,null,null,null,null,null,"Устье с, Мелиораторов ул, д. 15",null,null,null,null,"Устье с, Мелиораторов ул, д. 15",null,null,null,null,null,null,null,null,"Устье с, Мелиораторов ул, д. 15",null,null,null,null,"Устье с, Мелиораторов ул, д. 15",null,null,null,null,"Устье с, Мелиораторов ул, д. 15",null,null,"Устье с, Мелиораторов ул, д. 15",null,null,null,null,null,null,null,null,null,null,null,null,"Общий счет РО+"]
["Устье с, Мелиораторов ул, д.16А",{"$f":"\"Устье с, Мелиораторов ул, д.16А\"","v":"Устье с, Мелиораторов ул, д.16А"},{"$f":"\"Устье с, Мелиораторов ул, д.16А\"","v":"Устье с, Мелиораторов ул, д.16А"},{"$f":"\"Устье с, Мелиораторов ул, д.16А\"","v":"Устье с, Мелиораторов ул, д.16А"},{"$f":"\"Устье с, Мелиораторов ул, д.16А\"","v":"Устье с, Мелиораторов ул, д.16А"},"Устье с, Мелиораторов ул, д.16А",null,null,null,null,null,null,null,{"$f":"\"Устье с, Мелиораторов ул, д.16А\"","v":"Устье с, Мелиораторов ул, д.16А"},null,null,null,null,null,null,null,null,null,null,null,null,null,null,null,null,"Устье с, Мелиораторов ул, д. 16А",null,null,null,null,"Устье с, Мелиораторов ул, д. 16А",null,null,null,null,null,null,null,null,null,null,"Устье с, Мелиораторов ул, д. 16А",null,null,null,null,null,null,"Устье с, Мелиораторов ул, д. 16А",null,null,null,null,null,"Устье с, Мелиораторов ул, д. 16А",null,null,null,null,null,null,null,null,"Устье с, Мелиораторов ул, д. 16А",null,null,null,null,null,"Устье с, Мелиораторов ул, д. 16А",null,null,null,null,null,null,null,"Устье с, Мелиораторов ул, д. 16А",null,null,null,null,null,null,"Устье с, Мелиораторов ул, д. 16А",null,null,null,null,null,null,null,null,"Устье с, Мелиораторов ул, д. 16А",null,null,null,null,"Устье с, Мелиораторов ул, д. 16А",null,null,null,null,null,null,null,null,"Устье с, Мелиораторов ул, д. 16А",null,null,null,null,"Устье с, Мелиораторов ул, д. 16А",null,null,null,null,"Устье с, Мелиораторов ул, д. 16А",null,null,"Устье с, Мелиораторов ул, д. 16А",null,null,null,null,null,null,null,null,null,null,null,null,"Общий счет РО+"]
["Устье с, Мелиораторов ул, д.17",{"$f":"\"Устье с, Мелиораторов ул, д.17\"","v":"Устье с, Мелиораторов ул, д.17"},{"$f":"\"Устье с, Мелиораторов ул, д.17\"","v":"Устье с, Мелиораторов ул, д.17"},{"$f":"\"Устье с, Мелиораторов ул, д.17\"","v":"Устье с, Мелиораторов ул, д.17"},{"$f":"\"Устье с, Мелиораторов ул, д.17\"","v":"Устье с, Мелиораторов ул, д.17"},"Устье с, Мелиораторов ул, д.17",null,null,null,null,null,null,null,{"$f":"\"Устье с, Мелиораторов ул, д.17\"","v":"Устье с, Мелиораторов ул, д.17"},null,null,null,null,null,null,null,null,null,null,null,null,null,null,null,null,"Устье с, Мелиораторов ул, д. 17",null,null,null,null,"Устье с, Мелиораторов ул, д. 17",null,null,null,null,null,null,null,null,null,null,"Устье с, Мелиораторов ул, д. 17",null,null,null,null,null,null,"Устье с, Мелиораторов ул, д. 17",null,null,null,null,null,"Устье с, Мелиораторов ул, д. 17",null,null,null,null,null,null,null,null,"Устье с, Мелиораторов ул, д. 17",null,null,null,null,null,"Устье с, Мелиораторов ул, д. 17",null,null,null,null,null,null,null,"Устье с, Мелиораторов ул, д. 17",null,null,null,null,null,null,"Устье с, Мелиораторов ул, д. 17",null,null,null,null,null,null,null,null,"Устье с, Мелиораторов ул, д. 17",null,null,null,null,"Устье с, Мелиораторов ул, д. 17",null,null,null,null,null,null,null,null,"Устье с, Мелиораторов ул, д. 17",null,null,null,null,"Устье с, Мелиораторов ул, д. 17",null,null,null,null,"Устье с, Мелиораторов ул, д. 17",null,null,"Устье с, Мелиораторов ул, д. 17",null,null,null,null,null,null,null,null,null,null,null,null,"Общий счет РО+"]
["Устье с, Мелиораторов ул, д.22А",{"$f":"\"Устье с, Мелиораторов ул, д.22А\"","v":"Устье с, Мелиораторов ул, д.22А"},{"$f":"\"Устье с, Мелиораторов ул, д.22А\"","v":"Устье с, Мелиораторов ул, д.22А"},{"$f":"\"Устье с, Мелиораторов ул, д.22А\"","v":"Устье с, Мелиораторов ул, д.22А"},{"$f":"\"Устье с, Мелиораторов ул, д.22А\"","v":"Устье с, Мелиораторов ул, д.22А"},"Устье с, Мелиораторов ул, д.22А",null,null,null,null,null,null,null,{"$f":"\"Устье с, Мелиораторов ул, д.22А\"","v":"Устье с, Мелиораторов ул, д.22А"},null,null,null,null,null,null,null,null,null,null,null,null,null,null,null,null,"Устье с, Мелиораторов ул, д. 22А",null,null,null,null,"Устье с, Мелиораторов ул, д. 22А",null,null,null,null,null,null,null,null,null,null,"Устье с, Мелиораторов ул, д. 22А",null,null,null,null,null,null,"Устье с, Мелиораторов ул, д. 22А",null,null,null,null,null,"Устье с, Мелиораторов ул, д. 22А",null,null,null,null,null,null,null,null,"Устье с, Мелиораторов ул, д. 22А",null,null,null,null,null,"Устье с, Мелиораторов ул, д. 22А",null,null,null,null,null,null,null,"Устье с, Мелиораторов ул, д. 22А",null,null,null,null,null,null,"Устье с, Мелиораторов ул, д. 22А",null,null,null,null,null,null,null,null,"Устье с, Мелиораторов ул, д. 22А",null,null,null,null,"Устье с, Мелиораторов ул, д. 22А",null,null,null,null,null,null,null,null,"Устье с, Мелиораторов ул, д. 22А",null,null,null,null,"Устье с, Мелиораторов ул, д. 22А",null,null,null,null,"Устье с, Мелиораторов ул, д. 22А",null,null,"Устье с, Мелиораторов ул, д. 22А",null,null,null,null,null,null,null,null,null,null,null,null,"Общий счет РО+"]
[null,null,null,null,null,null,null,null,null,null,null,null,null,null,null,null,null,null,null,null,null,null,null,null,null,null,null,null,null,null,null,null,null,null,null,null,null,null,null,null,null,null,null,null,null,null,null,null,null,null,null,null,null,null,null,null,null,null,null,null,null,null,null,null,null,null,null,null,null,null,null,null,null,null,null,null,null,null,null,null,null,null,null,null,null,null,null,null,null,null,null,null,null,null,null,null,null,null,null,null,null,null,null,"Устье с, Мелиораторов ул, д. 22Б",null,null,null,null,null,null,null,null,"Устье с, Мелиораторов ул, д. 22Б",null,null,null,null,"Устье с, Мелиораторов ул, д. 22Б",null,null,null,null,"Устье с, Мелиораторов ул, д. 22Б",null,null,"Устье с, Мелиораторов ул, д. 22Б",null,null,null,null,null,null,null,null,null,null,null,null,"Общий счет РО"]
["Устье с, Мира ул, д.3А",{"$f":"\"Устье с, Мира ул, д.3А\"","v":"Устье с, Мира ул, д.3А"},{"$f":"\"Устье с, Мира ул, д.3А\"","v":"Устье с, Мира ул, д.3А"},{"$f":"\"Устье с, Мира ул, д.3А\"","v":"Устье с, Мира ул, д.3А"},{"$f":"\"Устье с, Мира ул, д.3А\"","v":"Устье с, Мира ул, д.3А"},"Устье с, Мира ул, д.3А",null,null,null,null,null,null,null,{"$f":"\"Устье с, Мира ул, д.3А\"","v":"Устье с, Мира ул, д.3А"},null,null,null,null,null,null,null,null,null,null,null,null,null,null,null,null,"Устье с, Мира ул, д. 3А",null,null,null,null,"Устье с, Мира ул, д. 3А",null,null,null,null,null,null,null,null,null,null,"Устье с, Мира ул, д. 3А",null,null,null,null,null,null,"Устье с, Мира ул, д. 3А",null,null,null,null,null,"Устье с, Мира ул, д. 3А",null,null,null,null,null,null,null,null,"Устье с, Мира ул, д. 3А",null,null,null,null,null,"Устье с, Мира ул, д. 3А",null,null,null,null,null,null,null,"Устье с, Мира ул, д. 3А",null,null,null,null,null,null,"Устье с, Мира ул, д. 3А",null,null,null,null,null,null,null,null,"Устье с, Мира ул, д. 3А",null,null,null,null,"Устье с, Мира ул, д. 3А",null,null,null,null,null,null,null,null,"Устье с, Мира ул, д. 3А",null,null,null,null,"Устье с, Мира ул, д. 3А",null,null,null,null,"Устье с, Мира ул, д. 3А",null,null,"Устье с, Мира ул, д. 3А",null,null,null,null,null,null,null,null,null,null,null,null,"Общий счет РО+",null,"ССРО-ОС с 06.02.2023"]
["Устье с, Мира ул, д.3",{"$f":"\"Устье с, Мира ул, д.3\"","v":"Устье с, Мира ул, д.3"},{"$f":"\"Устье с, Мира ул, д.3\"","v":"Устье с, Мира ул, д.3"},{"$f":"\"Устье с, Мира ул, д.3\"","v":"Устье с, Мира ул, д.3"},{"$f":"\"Устье с, Мира ул, д.3\"","v":"Устье с, Мира ул, д.3"},"Устье с, Мира ул, д.3",null,null,null,null,null,null,null,{"$f":"\"Устье с, Мира ул, д.3\"","v":"Устье с, Мира ул, д.3"},null,null,null,null,null,null,null,null,null,null,null,null,null,null,null,null,"Устье с, Мира ул, д. 3",null,null,null,null,"Устье с, Мира ул, д. 3",null,null,null,null,null,null,null,null,null,null,"Устье с, Мира ул, д. 3",null,null,null,null,null,null,"Устье с, Мира ул, д. 3",null,null,null,null,null,"Устье с, Мира ул, д. 3",null,null,null,null,null,null,null,null,"Устье с, Мира ул, д. 3",null,null,null,null,null,"Устье с, Мира ул, д. 3",null,null,null,null,null,null,null,"Устье с, Мира ул, д. 3",null,null,null,null,null,null,"Устье с, Мира ул, д. 3",null,null,null,null,null,null,null,null,"Устье с, Мира ул, д. 3",null,null,null,null,"Устье с, Мира ул, д. 3",null,null,null,null,null,null,null,null,"Устье с, Мира ул, д. 3",null,null,null,null,"Устье с, Мира ул, д. 3",null,null,null,null,"Устье с, Мира ул, д. 3",null,null,"Устье с, Мира ул, д. 3",null,null,null,null,null,null,null,null,null,null,null,null,"Общий счет РО+"]
["Устье с, Набережная ул, д.10",{"$f":"\"Устье с, Набережная ул, д.10\"","v":"Устье с, Набережная ул, д.10"},{"$f":"\"Устье с, Набережная ул, д.10\"","v":"Устье с, Набережная ул, д.10"},{"$f":"\"Устье с, Набережная ул, д.10\"","v":"Устье с, Набережная ул, д.10"},{"$f":"\"Устье с, Набережная ул, д.10\"","v":"Устье с, Набережная ул, д.10"},"Устье с, Набережная ул, д.10",null,null,null,null,null,null,null,{"$f":"\"Устье с, Набережная ул, д.10\"","v":"Устье с, Набережная ул, д.10"},null,null,null,null,null,null,null,null,null,null,null,null,null,null,null,null,"Устье с, Набережная ул, д. 10",null,null,null,null,"Устье с, Набережная ул, д. 10",null,null,null,null,null,null,null,null,null,null,"Устье с, Набережная ул, д. 10",null,null,null,null,null,null,"Устье с, Набережная ул, д. 10",null,null,null,null,null,"Устье с, Набережная ул, д. 10",null,null,null,null,null,null,null,null,"Устье с, Набережная ул, д. 10",null,null,null,null,null,"Устье с, Набережная ул, д. 10",null,null,null,null,null,null,null,"Устье с, Набережная ул, д. 10",null,null,null,null,null,null,"Устье с, Набережная ул, д. 10",null,null,null,null,null,null,null,null,"Устье с, Набережная ул, д. 10",null,null,null,null,"Устье с, Набережная ул, д. 10",null,null,null,null,null,null,null,null,"Устье с, Набережная ул, д. 10",null,null,null,null,"Устье с, Набережная ул, д. 10",null,null,null,null,"Устье с, Набережная ул, д. 10",null,null,"Устье с, Набережная ул, д. 10",null,null,null,null,null,null,null,null,null,null,null,null,"Общий счет РО+",null,"ССРО-ОС с 04.2015"]
["Устье с, Набережная ул, д.12",{"$f":"\"Устье с, Набережная ул, д.12\"","v":"Устье с, Набережная ул, д.12"},{"$f":"\"Устье с, Набережная ул, д.12\"","v":"Устье с, Набережная ул, д.12"},{"$f":"\"Устье с, Набережная ул, д.12\"","v":"Устье с, Набережная ул, д.12"},{"$f":"\"Устье с, Набережная ул, д.12\"","v":"Устье с, Набережная ул, д.12"},"Устье с, Набережная ул, д.12",null,null,null,null,null,null,null,{"$f":"\"Устье с, Набережная ул, д.12\"","v":"Устье с, Набережная ул, д.12"},null,null,null,null,null,null,null,null,null,null,null,null,null,null,null,null,"Устье с, Набережная ул, д. 12",null,null,null,null,"Устье с, Набережная ул, д. 12",null,null,null,null,null,null,null,null,null,null,"Устье с, Набережная ул, д. 12",null,null,null,null,null,null,"Устье с, Набережная ул, д. 12",null,null,null,null,null,"Устье с, Набережная ул, д. 12",null,null,null,null,null,null,null,null,"Устье с, Набережная ул, д. 12",null,null,null,null,null,"Устье с, Набережная ул, д. 12",null,null,null,null,null,null,null,"Устье с, Набережная ул, д. 12",null,null,null,null,null,null,"Устье с, Набережная ул, д. 12",null,null,null,null,null,null,null,null,"Устье с, Набережная ул, д. 12",null,null,null,null,"Устье с, Набережная ул, д. 12",null,null,null,null,null,null,null,null,"Устье с, Набережная ул, д. 12",null,null,null,null,"Устье с, Набережная ул, д. 12",null,null,null,null,"Устье с, Набережная ул, д. 12",null,null,"Устье с, Набережная ул, д. 12",null,null,null,null,null,null,null,null,null,null,null,null,"Общий счет РО+"]
["Устье с, Набережная ул, д.24",{"$f":"\"Устье с, Набережная ул, д.24\"","v":"Устье с, Набережная ул, д.24"},{"$f":"\"Устье с, Набережная ул, д.24\"","v":"Устье с, Набережная ул, д.24"},{"$f":"\"Устье с, Набережная ул, д.24\"","v":"Устье с, Набережная ул, д.24"},{"$f":"\"Устье с, Набережная ул, д.24\"","v":"Устье с, Набережная ул, д.24"},"Устье с, Набережная ул, д.24",null,null,null,null,null,null,null,{"$f":"\"Устье с, Набережная ул, д.24\"","v":"Устье с, Набережная ул, д.24"},null,null,null,null,null,null,null,null,null,null,null,null,null,null,null,null,"Устье с, Набережная ул, д. 24",null,null,null,null,"Устье с, Набережная ул, д. 24",null,null,null,null,null,null,null,null,null,null,"Устье с, Набережная ул, д. 24",null,null,null,null,null,null,"Устье с, Набережная ул, д. 24",null,null,null,null,null,"Устье с, Набережная ул, д. 24",null,null,null,null,null,null,null,null,"Устье с, Набережная ул, д. 24",null,null,null,null,null,"Устье с, Набережная ул, д. 24",null,null,null,null,null,null,null,"Устье с, Набережная ул, д. 24",null,null,null,null,null,null,"Устье с, Набережная ул, д. 24",null,null,null,null,null,null,null,null,"Устье с, Набережная ул, д. 24",null,null,null,null,"Устье с, Набережная ул, д. 24",null,null,null,null,null,null,null,null,"Устье с, Набережная ул, д. 24",null,null,null,null,"Устье с, Набережная ул, д. 24",null,null,null,null,"Устье с, Набережная ул, д. 24",null,null,"Устье с, Набережная ул, д. 24",null,null,null,null,null,null,null,null,null,null,null,null,"Общий счет РО+"]
["Устье с, Набережная ул, д.35",{"$f":"\"Устье с, Набережная ул, д.35\"","v":"Устье с, Набережная ул, д.35"},{"$f":"\"Устье с, Набережная ул, д.35\"","v":"Устье с, Набережная ул, д.35"},{"$f":"\"Устье с, Набережная ул, д.35\"","v":"Устье с, Набережная ул, д.35"},{"$f":"\"Устье с, Набережная ул, д.35\"","v":"Устье с, Набережная ул, д.35"},"Устье с, Набережная ул, д.35",null,null,null,null,null,null,null,{"$f":"\"Устье с, Набережная ул, д.35\"","v":"Устье с, Набережная ул, д.35"},null,null,null,null,null,null,null,null,null,null,null,null,null,null,null,null,"Устье с, Набережная ул, д. 35",null,null,null,null,"Устье с, Набережная ул, д. 35",null,null,null,null,null,null,null,null,null,null,"Устье с, Набережная ул, д. 35",null,null,null,null,null,null,"Устье с, Набережная ул, д. 35",null,null,null,null,null,"Устье с, Набережная ул, д. 35",null,null,null,null,null,null,null,null,"Устье с, Набережная ул, д. 35",null,null,null,null,null,"Устье с, Набережная ул, д. 35",null,null,null,null,null,null,null,"Устье с, Набережная ул, д. 35",null,null,null,null,null,null,"Устье с, Набережная ул, д. 35",null,null,null,null,null,null,null,null,"Устье с, Набережная ул, д. 35",null,null,null,null,"Устье с, Набережная ул, д. 35",null,null,null,null,null,null,null,null,"Устье с, Набережная ул, д. 35",null,null,null,null,"Устье с, Набережная ул, д. 35",null,null,null,null,"Устье с, Набережная ул, д. 35",null,null,"Устье с, Набережная ул, д. 35",null,null,null,null,null,null,null,null,null,null,null,null,"Общий счет РО+"]
["Устье с, Набережная ул, д.37",{"$f":"\"Устье с, Набережная ул, д.37\"","v":"Устье с, Набережная ул, д.37"},{"$f":"\"Устье с, Набережная ул, д.37\"","v":"Устье с, Набережная ул, д.37"},{"$f":"\"Устье с, Набережная ул, д.37\"","v":"Устье с, Набережная ул, д.37"},{"$f":"\"Устье с, Набережная ул, д.37\"","v":"Устье с, Набережная ул, д.37"},"Устье с, Набережная ул, д.37",null,null,null,null,null,null,null,{"$f":"\"Устье с, Набережная ул, д.37\"","v":"Устье с, Набережная ул, д.37"},null,null,null,null,null,null,null,null,null,null,null,null,null,null,null,null,"Устье с, Набережная ул, д. 37",null,null,null,null,"Устье с, Набережная ул, д. 37",null,null,null,null,null,null,null,null,null,null,"Устье с, Набережная ул, д. 37",null,null,null,null,null,null,"Устье с, Набережная ул, д. 37",null,null,null,null,null,"Устье с, Набережная ул, д. 37",null,null,null,null,null,null,null,null,"Устье с, Набережная ул, д. 37",null,null,null,null,null,"Устье с, Набережная ул, д. 37",null,null,null,null,null,null,null,"Устье с, Набережная ул, д. 37",null,null,null,null,null,null,"Устье с, Набережная ул, д. 37",null,null,null,null,null,null,null,null,"Устье с, Набережная ул, д. 37",null,null,null,null,"Устье с, Набережная ул, д. 37",null,null,null,null,null,null,null,null,"Устье с, Набережная ул, д. 37",null,null,null,null,"Устье с, Набережная ул, д. 37",null,null,null,null,"Устье с, Набережная ул, д. 37",null,null,"Устье с, Набережная ул, д. 37",null,null,null,null,null,null,null,null,null,null,null,null,"Общий счет РО+"]
["Устье с, Набережная ул, д.71",{"$f":"\"Устье с, Набережная ул, д.71\"","v":"Устье с, Набережная ул, д.71"},{"$f":"\"Устье с, Набережная ул, д.71\"","v":"Устье с, Набережная ул, д.71"},{"$f":"\"Устье с, Набережная ул, д.71\"","v":"Устье с, Набережная ул, д.71"},{"$f":"\"Устье с, Набережная ул, д.71\"","v":"Устье с, Набережная ул, д.71"},"Устье с, Набережная ул, д.71",null,null,null,null,null,null,null,{"$f":"\"Устье с, Набережная ул, д.71\"","v":"Устье с, Набережная ул, д.71"},null,null,null,null,null,null,null,null,null,null,null,null,null,null,null,null,"Устье с, Набережная ул, д. 71",null,null,null,null,"Устье с, Набережная ул, д. 71",null,null,null,null,null,null,null,null,null,null,"Устье с, Набережная ул, д. 71",null,null,null,null,null,null,"Устье с, Набережная ул, д. 71",null,null,null,null,null,"Устье с, Набережная ул, д. 71",null,null,null,null,null,null,null,null,"Устье с, Набережная ул, д. 71",null,null,null,null,null,"Устье с, Набережная ул, д. 71",null,null,null,null,null,null,null,"Устье с, Набережная ул, д. 71",null,null,null,null,null,null,"Устье с, Набережная ул, д. 71",null,null,null,null,null,null,null,null,"Устье с, Набережная ул, д. 71",null,null,null,null,"Устье с, Набережная ул, д. 71",null,null,null,null,null,null,null,null,"Устье с, Набережная ул, д. 71",null,null,null,null,"Устье с, Набережная ул, д. 71",null,null,null,null,"Устье с, Набережная ул, д. 71",null,null,"Устье с, Набережная ул, д. 71",null,null,null,null,null,null,null,null,null,null,null,null,"Специальный счет РО + учет",null,"ОС-ССРО с 09.2015"]
["Устье с, Нагорная ул, д.5",{"$f":"\"Устье с, Нагорная ул, д.5\"","v":"Устье с, Нагорная ул, д.5"},{"$f":"\"Устье с, Нагорная ул, д.5\"","v":"Устье с, Нагорная ул, д.5"},{"$f":"\"Устье с, Нагорная ул, д.5\"","v":"Устье с, Нагорная ул, д.5"},{"$f":"\"Устье с, Нагорная ул, д.5\"","v":"Устье с, Нагорная ул, д.5"},"Устье с, Нагорная ул, д.5",null,null,null,null,null,null,null,{"$f":"\"Устье с, Нагорная ул, д.5\"","v":"Устье с, Нагорная ул, д.5"},null,null,null,null,null,null,null,null,null,null,null,null,null,null,null,null,"Устье с, Нагорная ул, д. 5",null,null,null,null,"Устье с, Нагорная ул, д. 5",null,null,null,null,null,null,null,null,null,null,"Устье с, Нагорная ул, д. 5",null,null,null,null,null,null,"Устье с, Нагорная ул, д. 5",null,null,null,null,null,"Устье с, Нагорная ул, д. 5",null,null,null,null,null,null,null,null,"Устье с, Нагорная ул, д. 5",null,null,null,null,null,"Устье с, Нагорная ул, д. 5",null,null,null,null,null,null,null,"Устье с, Нагорная ул, д. 5",null,null,null,null,null,null,"Устье с, Нагорная ул, д. 5",null,null,null,null,null,null,null,null,"Устье с, Нагорная ул, д. 5",null,null,null,null,"Устье с, Нагорная ул, д. 5",null,null,null,null,null,null,null,null,"Устье с, Нагорная ул, д. 5",null,null,null,null,"Устье с, Нагорная ул, д. 5",null,null,null,null,"Устье с, Нагорная ул, д. 5",null,null,"Устье с, Нагорная ул, д. 5",null,null,null,null,null,null,null,null,null,null,null,null,"Специальный счет РО + учет"]
["Устье с, Нагорная ул, д.5А",{"$f":"\"Устье с, Нагорная ул, д.5А\"","v":"Устье с, Нагорная ул, д.5А"},{"$f":"\"Устье с, Нагорная ул, д.5А\"","v":"Устье с, Нагорная ул, д.5А"},{"$f":"\"Устье с, Нагорная ул, д.5А\"","v":"Устье с, Нагорная ул, д.5А"},{"$f":"\"Устье с, Нагорная ул, д.5А\"","v":"Устье с, Нагорная ул, д.5А"},"Устье с, Нагорная ул, д.5А",null,null,null,null,null,null,null,{"$f":"\"Устье с, Нагорная ул, д.5А\"","v":"Устье с, Нагорная ул, д.5А"},null,null,null,null,null,null,null,null,null,null,null,null,null,null,null,null,"Устье с, Нагорная ул, д. 5А",null,null,null,null,"Устье с, Нагорная ул, д. 5А",null,null,null,null,null,null,null,null,null,null,"Устье с, Нагорная ул, д. 5А",null,null,null,null,null,null,"Устье с, Нагорная ул, д. 5А",null,null,null,null,null,"Устье с, Нагорная ул, д. 5А",null,null,null,null,null,null,null,null,"Устье с, Нагорная ул, д. 5А",null,null,null,null,null,"Устье с, Нагорная ул, д. 5А",null,null,null,null,null,null,null,"Устье с, Нагорная ул, д. 5А",null,null,null,null,null,null,"Устье с, Нагорная ул, д. 5А",null,null,null,null,null,null,null,null,"Устье с, Нагорная ул, д. 5А",null,null,null,null,"Устье с, Нагорная ул, д. 5А",null,null,null,null,null,null,null,null,"Устье с, Нагорная ул, д. 5А",null,null,null,null,"Устье с, Нагорная ул, д. 5А",null,null,null,null,"Устье с, Нагорная ул, д. 5А",null,null,"Устье с, Нагорная ул, д. 5А",null,null,null,null,null,null,null,null,null,null,null,null,"Общий счет РО+"]
["Устье с, Нагорная ул, д.7",{"$f":"\"Устье с, Нагорная ул, д.7\"","v":"Устье с, Нагорная ул, д.7"},{"$f":"\"Устье с, Нагорная ул, д.7\"","v":"Устье с, Нагорная ул, д.7"},{"$f":"\"Устье с, Нагорная ул, д.7\"","v":"Устье с, Нагорная ул, д.7"},{"$f":"\"Устье с, Нагорная ул, д.7\"","v":"Устье с, Нагорная ул, д.7"},"Устье с, Нагорная ул, д.7",null,null,null,null,null,null,null,{"$f":"\"Устье с, Нагорная ул, д.7\"","v":"Устье с, Нагорная ул, д.7"},null,null,null,null,null,null,null,null,null,null,null,null,null,null,null,null,"Устье с, Нагорная ул, д. 7",null,null,null,null,"Устье с, Нагорная ул, д. 7",null,null,null,null,null,null,null,null,null,null,"Устье с, Нагорная ул, д. 7",null,null,null,null,null,null,"Устье с, Нагорная ул, д. 7",null,null,null,null,null,"Устье с, Нагорная ул, д. 7",null,null,null,null,null,null,null,null,"Устье с, Нагорная ул, д. 7",null,null,null,null,null,"Устье с, Нагорная ул, д. 7",null,null,null,null,null,null,null,"Устье с, Нагорная ул, д. 7",null,null,null,null,null,null,"Устье с, Нагорная ул, д. 7",null,null,null,null,null,null,null,null,"Устье с, Нагорная ул, д. 7",null,null,null,null,"Устье с, Нагорная ул, д. 7",null,null,null,null,null,null,null,null,"Устье с, Нагорная ул, д. 7",null,null,null,null,"Устье с, Нагорная ул, д. 7",null,null,null,null,"Устье с, Нагорная ул, д. 7",null,null,"Устье с, Нагорная ул, д. 7",null,null,null,null,null,null,null,null,null,null,null,null,"Общий счет РО+"]
["Устье с, Нагорная ул, д.7Б",{"$f":"\"Устье с, Нагорная ул, д.7Б\"","v":"Устье с, Нагорная ул, д.7Б"},{"$f":"\"Устье с, Нагорная ул, д.7Б\"","v":"Устье с, Нагорная ул, д.7Б"},{"$f":"\"Устье с, Нагорная ул, д.7Б\"","v":"Устье с, Нагорная ул, д.7Б"},{"$f":"\"Устье с, Нагорная ул, д.7Б\"","v":"Устье с, Нагорная ул, д.7Б"},"Устье с, Нагорная ул, д.7Б",null,null,null,null,null,null,null,{"$f":"\"Устье с, Нагорная ул, д.7Б\"","v":"Устье с, Нагорная ул, д.7Б"},null,null,null,null,null,null,null,null,null,null,null,null,null,null,null,null,"Устье с, Нагорная ул, д. 7Б",null,null,null,null,"Устье с, Нагорная ул, д. 7Б",null,null,null,null,null,null,null,null,null,null,"Устье с, Нагорная ул, д. 7Б",null,null,null,null,null,null,"Устье с, Нагорная ул, д. 7Б",null,null,null,null,null,"Устье с, Нагорная ул, д. 7Б",null,null,null,null,null,null,null,null,"Устье с, Нагорная ул, д. 7Б",null,null,null,null,null,"Устье с, Нагорная ул, д. 7Б",null,null,null,null,null,null,null,"Устье с, Нагорная ул, д. 7Б",null,null,null,null,null,null,"Устье с, Нагорная ул, д. 7Б",null,null,null,null,null,null,null,null,"Устье с, Нагорная ул, д. 7Б",null,null,null,null,"Устье с, Нагорная ул, д. 7Б",null,null,null,null,null,null,null,null,"Устье с, Нагорная ул, д. 7Б",null,null,null,null,"Устье с, Нагорная ул, д. 7Б",null,null,null,null,"Устье с, Нагорная ул, д. 7Б",null,null,"Устье с, Нагорная ул, д. 7Б",null,null,null,null,null,null,null,null,null,null,null,null,"Специальный счет РО + учет"]
["Устье с, Нагорная ул, д.7А",{"$f":"\"Устье с, Нагорная ул, д.7А\"","v":"Устье с, Нагорная ул, д.7А"},{"$f":"\"Устье с, Нагорная ул, д.7А\"","v":"Устье с, Нагорная ул, д.7А"},{"$f":"\"Устье с, Нагорная ул, д.7А\"","v":"Устье с, Нагорная ул, д.7А"},{"$f":"\"Устье с, Нагорная ул, д.7А\"","v":"Устье с, Нагорная ул, д.7А"},"Устье с, Нагорная ул, д.7А",null,null,null,null,null,null,null,{"$f":"\"Устье с, Нагорная ул, д.7А\"","v":"Устье с, Нагорная ул, д.7А"},null,null,null,null,null,null,null,null,null,null,null,null,null,null,null,null,"Устье с, Нагорная ул, д. 7А",null,null,null,null,"Устье с, Нагорная ул, д. 7А",null,null,null,null,null,null,null,null,null,null,"Устье с, Нагорная ул, д. 7А",null,null,null,null,null,null,"Устье с, Нагорная ул, д. 7А",null,null,null,null,null,"Устье с, Нагорная ул, д. 7А",null,null,null,null,null,null,null,null,"Устье с, Нагорная ул, д. 7А",null,null,null,null,null,"Устье с, Нагорная ул, д. 7А",null,null,null,null,null,null,null,"Устье с, Нагорная ул, д. 7А",null,null,null,null,null,null,"Устье с, Нагорная ул, д. 7А",null,null,null,null,null,null,null,null,"Устье с, Нагорная ул, д. 7А",null,null,null,null,"Устье с, Нагорная ул, д. 7А",null,null,null,null,null,null,null,null,"Устье с, Нагорная ул, д. 7А",null,null,null,null,"Устье с, Нагорная ул, д. 7А",null,null,null,null,"Устье с, Нагорная ул, д. 7А",null,null,"Устье с, Нагорная ул, д. 7А",null,null,null,null,null,null,null,null,null,null,null,null,"Специальный счет РО + учет"]
["Устье с, Новый пер, д.1",{"$f":"\"Устье с, Новый пер, д.1\"","v":"Устье с, Новый пер, д.1"},{"$f":"\"Устье с, Новый пер, д.1\"","v":"Устье с, Новый пер, д.1"},{"$f":"\"Устье с, Новый пер, д.1\"","v":"Устье с, Новый пер, д.1"},{"$f":"\"Устье с, Новый пер, д.1\"","v":"Устье с, Новый пер, д.1"},"Устье с, Новый пер, д.1",null,null,null,null,null,null,null,{"$f":"\"Устье с, Новый пер, д.1\"","v":"Устье с, Новый пер, д.1"},null,null,null,null,null,null,null,null,null,null,null,null,null,null,null,null,"Устье с, Новый пер, д. 1",null,null,null,null,"Устье с, Новый пер, д. 1",null,null,null,null,null,null,null,null,null,null,"Устье с, Новый пер, д. 1",null,null,null,null,null,null,"Устье с, Новый пер, д. 1",null,null,null,null,null,"Устье с, Новый пер, д. 1",null,null,null,null,null,null,null,null,"Устье с, Новый пер, д. 1",null,null,null,null,null,"Устье с, Новый пер, д. 1",null,null,null,null,null,null,null,"Устье с, Новый пер, д. 1",null,null,null,null,null,null,"Устье с, Новый пер, д. 1",null,null,null,null,null,null,null,null,"Устье с, Новый пер, д. 1",null,null,null,null,"Устье с, Новый пер, д. 1",null,null,null,null,null,null,null,null,"Устье с, Новый пер, д. 1",null,null,null,null,"Устье с, Новый пер, д. 1",null,null,null,null,"Устье с, Новый пер, д. 1",null,null,"Устье с, Новый пер, д. 1",null,null,null,null,null,null,null,null,null,null,null,null,"Общий счет РО+"]
["Устье с, Новый пер, д.3",{"$f":"\"Устье с, Новый пер, д.3\"","v":"Устье с, Новый пер, д.3"},{"$f":"\"Устье с, Новый пер, д.3\"","v":"Устье с, Новый пер, д.3"},{"$f":"\"Устье с, Новый пер, д.3\"","v":"Устье с, Новый пер, д.3"},{"$f":"\"Устье с, Новый пер, д.3\"","v":"Устье с, Новый пер, д.3"},"Устье с, Новый пер, д.3",null,null,null,null,null,null,null,{"$f":"\"Устье с, Новый пер, д.3\"","v":"Устье с, Новый пер, д.3"},null,null,null,null,null,null,null,null,null,null,null,null,null,null,null,null,"Устье с, Новый пер, д. 3",null,null,null,null,"Устье с, Новый пер, д. 3",null,null,null,null,null,null,null,null,null,null,"Устье с, Новый пер, д. 3",null,null,null,null,null,null,"Устье с, Новый пер, д. 3",null,null,null,null,null,"Устье с, Новый пер, д. 3",null,null,null,null,null,null,null,null,"Устье с, Новый пер, д. 3",null,null,null,null,null,"Устье с, Новый пер, д. 3",null,null,null,null,null,null,null,"Устье с, Новый пер, д. 3",null,null,null,null,null,null,"Устье с, Новый пер, д. 3",null,null,null,null,null,null,null,null,"Устье с, Новый пер, д. 3",null,null,null,null,"Устье с, Новый пер, д. 3",null,null,null,null,null,null,null,null,"Устье с, Новый пер, д. 3",null,null,null,null,"Устье с, Новый пер, д. 3",null,null,null,null,"Устье с, Новый пер, д. 3",null,null,"Устье с, Новый пер, д. 3",null,null,null,null,null,null,null,null,null,null,null,null,"Общий счет РО+",null,"ССРО-ОС с 01.2015"]
[null,null,null,null,null,null,null,null,null,null,null,null,null,null,null,null,null,null,null,null,null,null,null,null,null,null,null,null,null,null,"Устье с, Окружная ул, д. 2А",null,null,null,null,"Устье с, Окружная ул, д. 2А",null,null,null,null,null,null,null,null,null,null,"Устье с, Окружная ул, д. 2А",null,null,null,null,null,null,"Устье с, Окружная ул, д. 2А",null,null,null,null,null,"Устье с, Окружная ул, д. 2А",null,null,null,null,null,null,null,null,"Устье с, Окружная ул, д. 2А",null,null,null,null,null,"Устье с, Окружная ул, д. 2А",null,null,null,null,null,null,null,"Устье с, Окружная ул, д. 2А",null,null,null,null,null,null,"Устье с, Окружная ул, д. 2А",null,null,null,null,null,null,null,null,"Устье с, Окружная ул, д. 2А",null,null,null,null,"Устье с, Окружная ул, д. 2А",null,null,null,null,null,null,null,null,"Устье с, Окружная ул, д. 2А",null,null,null,null,"Устье с, Окружная ул, д. 2А",null,null,null,null,"Устье с, Окружная ул, д. 2А",null,null,"Устье с, Окружная ул, д. 2А",null,null,null,null,null,null,null,null,null,null,null,null,"Общий счет РО+"]
["Устье с, Окружная ул, д.13",{"$f":"\"Устье с, Окружная ул, д.13\"","v":"Устье с, Окружная ул, д.13"},{"$f":"\"Устье с, Окружная ул, д.13\"","v":"Устье с, Окружная ул, д.13"},{"$f":"\"Устье с, Окружная ул, д.13\"","v":"Устье с, Окружная ул, д.13"},{"$f":"\"Устье с, Окружная ул, д.13\"","v":"Устье с, Окружная ул, д.13"},"Устье с, Окружная ул, д.13",null,null,null,null,null,null,null,null,null,null,null,null,null,null,null,null,null,null,null,null,null,null,null,null,null,null,null,null,null,null,null,null,null,null,null,null,null,null,null,null,null,null,null,null,null,null,null,null,null,null,null,null,null,null,null,null,null,null,null,null,null,null,null,null,null,null,null,null,null,null,null,null,null,null,null,null,null,null,null,null,null,null,null,null,null,null,null,null,null,null,null,null,null,null,null,null,null,null,null,null,null,null,null,null,null,null,null,null,null,null,null,null,null,null,null,null,null,null,null,null,null,null,null,null,null,null,null,null,null,null,null,null,"Общий счет - 236,8","Дом блокированной застройки. Расчет прекращен с 01.08.2016","Исключен 10.07.2017"]
["Устье с, Окружная ул, д.15",{"$f":"\"Устье с, Окружная ул, д.15\"","v":"Устье с, Окружная ул, д.15"},{"$f":"\"Устье с, Окружная ул, д.15\"","v":"Устье с, Окружная ул, д.15"},{"$f":"\"Устье с, Окружная ул, д.15\"","v":"Устье с, Окружная ул, д.15"},{"$f":"\"Устье с, Окружная ул, д.15\"","v":"Устье с, Окружная ул, д.15"},"Устье с, Окружная ул, д.15",null,null,null,null,null,null,null,{"$f":"\"Устье с, Окружная ул, д.15\"","v":"Устье с, Окружная ул, д.15"},null,null,null,null,null,null,null,null,null,null,null,null,null,null,null,null,"Устье с, Окружная ул, д. 15",null,null,null,null,"Устье с, Окружная ул, д. 15",null,null,null,null,null,null,null,null,null,null,"Устье с, Окружная ул, д. 15",null,null,null,null,null,null,"Устье с, Окружная ул, д. 15",null,null,null,null,null,"Устье с, Окружная ул, д. 15",null,null,null,null,null,null,null,null,"Устье с, Окружная ул, д. 15",null,null,null,null,null,"Устье с, Окружная ул, д. 15",null,null,null,null,null,null,null,"Устье с, Окружная ул, д. 15",null,null,null,null,null,null,"Устье с, Окружная ул, д. 15",null,null,null,null,null,null,null,null,"Устье с, Окружная ул, д. 15",null,null,null,null,"Устье с, Окружная ул, д. 15",null,null,null,null,null,null,null,null,"Устье с, Окружная ул, д. 15",null,null,null,null,"Устье с, Окружная ул, д. 15",null,null,null,null,"Устье с, Окружная ул, д. 15",null,null,"Устье с, Окружная ул, д. 15",null,null,null,null,null,null,null,null,null,null,null,null,"Общий счет РО+"]
["Устье с, Октябрьская ул, д.20",{"$f":"\"Устье с, Октябрьская ул, д.20\"","v":"Устье с, Октябрьская ул, д.20"},{"$f":"\"Устье с, Октябрьская ул, д.20\"","v":"Устье с, Октябрьская ул, д.20"},{"$f":"\"Устье с, Октябрьская ул, д.20\"","v":"Устье с, Октябрьская ул, д.20"},{"$f":"\"Устье с, Октябрьская ул, д.20\"","v":"Устье с, Октябрьская ул, д.20"},"Устье с, Октябрьская ул, д.20",null,null,null,null,null,null,null,{"$f":"\"Устье с, Октябрьская ул, д.20\"","v":"Устье с, Октябрьская ул, д.20"},null,null,null,null,null,null,null,null,null,null,null,null,null,null,null,null,"Устье с, Октябрьская ул, д. 20",null,null,null,null,"Устье с, Октябрьская ул, д. 20",null,null,null,null,null,null,null,null,null,null,"Устье с, Октябрьская ул, д. 20",null,null,null,null,null,null,"Устье с, Октябрьская ул, д. 20",null,null,null,null,null,"Устье с, Октябрьская ул, д. 20",null,null,null,null,null,null,null,null,"Устье с, Октябрьская ул, д. 20",null,null,null,null,null,null,null,null,null,null,null,null,null,null,null,null,null,null,null,null,null,null,null,null,null,null,null,null,null,null,null,null,null,null,null,null,null,null,null,null,null,null,null,null,null,null,null,null,null,null,null,null,null,null,null,null,null,null,null,null,null,null,null,null,null,null,null,null,null,"Общий счет РО - 493,80","Признан аварийным. Заключение № 6 от 11.10.2021","ССРО-ОС с 05.02.2021      Исключен 07.02.2022"]
["Устье с, Октябрьская ул, д.22",{"$f":"\"Устье с, Октябрьская ул, д.22\"","v":"Устье с, Октябрьская ул, д.22"},{"$f":"\"Устье с, Октябрьская ул, д.22\"","v":"Устье с, Октябрьская ул, д.22"},{"$f":"\"Устье с, Октябрьская ул, д.22\"","v":"Устье с, Октябрьская ул, д.22"},{"$f":"\"Устье с, Октябрьская ул, д.22\"","v":"Устье с, Октябрьская ул, д.22"},"Устье с, Октябрьская ул, д.22",null,null,null,null,null,null,null,{"$f":"\"Устье с, Октябрьская ул, д.22\"","v":"Устье с, Октябрьская ул, д.22"},null,null,null,null,null,null,null,null,null,null,null,null,null,null,null,null,"Устье с, Октябрьская ул, д. 22",null,null,null,null,"Устье с, Октябрьская ул, д. 22",null,null,null,null,null,null,null,null,null,null,"Устье с, Октябрьская ул, д. 22",null,null,null,null,null,null,"Устье с, Октябрьская ул, д. 22",null,null,null,null,null,"Устье с, Октябрьская ул, д. 22",null,null,null,null,null,null,null,null,"Устье с, Октябрьская ул, д. 22",null,null,null,null,null,"Устье с, Октябрьская ул, д. 22",null,null,null,null,null,null,null,"Устье с, Октябрьская ул, д. 22",null,null,null,null,null,null,"Устье с, Октябрьская ул, д. 22",null,null,null,null,null,null,null,null,"Устье с, Октябрьская ул, д. 22",null,null,null,null,"Устье с, Октябрьская ул, д. 22",null,null,null,null,null,null,null,null,"Устье с, Октябрьская ул, д. 22",null,null,null,null,"Устье с, Октябрьская ул, д. 22",null,null,null,null,"Устье с, Октябрьская ул, д. 22",null,null,"Устье с, Октябрьская ул, д. 22",null,null,null,null,null,null,null,null,null,null,null,null,"Общий счет РО+"]
["Устье с, Октябрьская ул, д.50",{"$f":"\"Устье с, Октябрьская ул, д.50\"","v":"Устье с, Октябрьская ул, д.50"},{"$f":"\"Устье с, Октябрьская ул, д.50\"","v":"Устье с, Октябрьская ул, д.50"},{"$f":"\"Устье с, Октябрьская ул, д.50\"","v":"Устье с, Октябрьская ул, д.50"},{"$f":"\"Устье с, Октябрьская ул, д.50\"","v":"Устье с, Октябрьская ул, д.50"},"Устье с, Октябрьская ул, д.50",null,null,null,null,null,null,null,{"$f":"\"Устье с, Октябрьская ул, д.50\"","v":"Устье с, Октябрьская ул, д.50"},null,null,null,null,null,null,null,null,null,null,null,null,null,null,null,null,"Устье с, Октябрьская ул, д. 50",null,null,null,null,"Устье с, Октябрьская ул, д. 50",null,null,null,null,null,null,null,null,null,null,"Устье с, Октябрьская ул, д. 50",null,null,null,null,null,null,"Устье с, Октябрьская ул, д. 50",null,null,null,null,null,"Устье с, Октябрьская ул, д. 50",null,null,null,null,null,null,null,null,"Устье с, Октябрьская ул, д. 50",null,null,null,null,null,"Устье с, Октябрьская ул, д. 50",null,null,null,null,null,null,null,"Устье с, Октябрьская ул, д. 50",null,null,null,null,null,null,"Устье с, Октябрьская ул, д. 50",null,null,null,null,null,null,null,null,"Устье с, Октябрьская ул, д. 50",null,null,null,null,"Устье с, Октябрьская ул, д. 50",null,null,null,null,null,null,null,null,"Устье с, Октябрьская ул, д. 50",null,null,null,null,null,null,null,null,null,null,null,null,null,null,null,null,null,null,null,null,null,null,null,null,null,"Специальный счет РО + учет - 597,20","Признан аварийным. Постановление 1587 от 04.10.2024","ОС-ССРО с 06.2015    Исключен 02.04.2025"]
["Устье с, Октябрьская ул, д.52",{"$f":"\"Устье с, Октябрьская ул, д.52\"","v":"Устье с, Октябрьская ул, д.52"},{"$f":"\"Устье с, Октябрьская ул, д.52\"","v":"Устье с, Октябрьская ул, д.52"},{"$f":"\"Устье с, Октябрьская ул, д.52\"","v":"Устье с, Октябрьская ул, д.52"},{"$f":"\"Устье с, Октябрьская ул, д.52\"","v":"Устье с, Октябрьская ул, д.52"},"Устье с, Октябрьская ул, д.52",null,null,null,null,null,null,null,{"$f":"\"Устье с, Октябрьская ул, д.52\"","v":"Устье с, Октябрьская ул, д.52"},null,null,null,null,null,null,null,null,null,null,null,null,null,null,null,null,"Устье с, Октябрьская ул, д. 52",null,null,null,null,"Устье с, Октябрьская ул, д. 52",null,null,null,null,null,null,null,null,null,null,"Устье с, Октябрьская ул, д. 52",null,null,null,null,null,null,"Устье с, Октябрьская ул, д. 52",null,null,null,null,null,"Устье с, Октябрьская ул, д. 52",null,null,null,null,null,null,null,null,"Устье с, Октябрьская ул, д. 52",null,null,null,null,null,"Устье с, Октябрьская ул, д. 52",null,null,null,null,null,null,null,"Устье с, Октябрьская ул, д. 52",null,null,null,null,null,null,"Устье с, Октябрьская ул, д. 52",null,null,null,null,null,null,null,null,"Устье с, Октябрьская ул, д. 52",null,null,null,null,"Устье с, Октябрьская ул, д. 52",null,null,null,null,null,null,null,null,"Устье с, Октябрьская ул, д. 52",null,null,null,null,"Устье с, Октябрьская ул, д. 52",null,null,null,null,"Устье с, Октябрьская ул, д. 52",null,null,"Устье с, Октябрьская ул, д. 52",null,null,null,null,null,null,null,null,null,null,null,null,"Общий счет РО+"]
["Устье с, Октябрьская ул, д.61",{"$f":"\"Устье с, Октябрьская ул, д.61\"","v":"Устье с, Октябрьская ул, д.61"},{"$f":"\"Устье с, Октябрьская ул, д.61\"","v":"Устье с, Октябрьская ул, д.61"},{"$f":"\"Устье с, Октябрьская ул, д.61\"","v":"Устье с, Октябрьская ул, д.61"},{"$f":"\"Устье с, Октябрьская ул, д.61\"","v":"Устье с, Октябрьская ул, д.61"},"Устье с, Октябрьская ул, д.61",null,null,null,null,null,null,null,{"$f":"\"Устье с, Октябрьская ул, д.61\"","v":"Устье с, Октябрьская ул, д.61"},null,null,null,null,null,null,null,null,null,null,null,null,null,null,null,null,"Устье с, Октябрьская ул, д. 61",null,null,null,null,"Устье с, Октябрьская ул, д. 61",null,null,null,null,null,null,null,null,null,null,"Устье с, Октябрьская ул, д. 61",null,null,null,null,null,null,"Устье с, Октябрьская ул, д. 61",null,null,null,null,null,"Устье с, Октябрьская ул, д. 61",null,null,null,null,null,null,null,null,"Устье с, Октябрьская ул, д. 61",null,null,null,null,null,"Устье с, Октябрьская ул, д. 61",null,null,null,null,null,null,null,"Устье с, Октябрьская ул, д. 61",null,null,null,null,null,null,"Устье с, Октябрьская ул, д. 61",null,null,null,null,null,null,null,null,"Устье с, Октябрьская ул, д. 61",null,null,null,null,"Устье с, Октябрьская ул, д. 61",null,null,null,null,null,null,null,null,"Устье с, Октябрьская ул, д. 61",null,null,null,null,"Устье с, Октябрьская ул, д. 61",null,null,null,null,"Устье с, Октябрьская ул, д. 61",null,null,"Устье с, Октябрьская ул, д. 61",null,null,null,null,null,null,null,null,null,null,null,null,"Общий счет РО+"]
["Устье с, Первомайская ул, д.4",{"$f":"\"Устье с, Первомайская ул, д.4\"","v":"Устье с, Первомайская ул, д.4"},{"$f":"\"Устье с, Первомайская ул, д.4\"","v":"Устье с, Первомайская ул, д.4"},{"$f":"\"Устье с, Первомайская ул, д.4\"","v":"Устье с, Первомайская ул, д.4"},{"$f":"\"Устье с, Первомайская ул, д.4\"","v":"Устье с, Первомайская ул, д.4"},"Устье с, Первомайская ул, д.4",null,null,null,null,null,null,null,{"$f":"\"Устье с, Первомайская ул, д.4\"","v":"Устье с, Первомайская ул, д.4"},null,null,null,null,null,null,null,null,null,null,null,null,null,null,null,null,"Устье с, Первомайская ул, д. 4",null,null,null,null,"Устье с, Первомайская ул, д. 4",null,null,null,null,null,null,null,null,null,null,"Устье с, Первомайская ул, д. 4",null,null,null,null,null,null,"Устье с, Первомайская ул, д. 4",null,null,null,null,null,null,null,null,null,null,null,null,null,null,null,null,null,null,null,null,null,null,null,null,null,null,null,null,null,null,null,null,null,null,null,null,null,null,null,null,null,null,null,null,null,null,null,null,null,null,null,null,null,null,null,null,null,null,null,null,null,null,null,null,null,null,null,null,null,null,null,null,null,null,null,null,null,null,null,null,null,null,null,null,"Общий счет РО - 324,40","Признан аварийным. Заключение № 8 от 30.11.2020","Исключен 28.12.2020"]
["Устье с, Пионерская ул, д.6",null,{"$f":"\"Устье с, Пионерская ул, д.6\"","v":"Устье с, Пионерская ул, д.6"},{"$f":"\"Устье с, Пионерская ул, д.6\"","v":"Устье с, Пионерская ул, д.6"},{"$f":"\"Устье с, Пионерская ул, д.6\"","v":"Устье с, Пионерская ул, д.6"},"Устье с, Пионерская ул, д.6",null,null,null,null,null,null,null,{"$f":"\"Устье с, Пионерская ул, д.6\"","v":"Устье с, Пионерская ул, д.6"},null,null,null,null,null,null,null,null,null,null,null,null,null,null,null,null,"Устье с, Пионерская ул, д. 6",null,null,null,null,"Устье с, Пионерская ул, д. 6",null,null,null,null,null,null,null,null,null,null,"Устье с, Пионерская ул, д. 6",null,null,null,null,null,null,"Устье с, Пионерская ул, д. 6",null,null,null,null,null,"Устье с, Пионерская ул, д. 6",null,null,null,null,null,null,null,null,"Устье с, Пионерская ул, д. 6",null,null,null,null,null,"Устье с, Пионерская ул, д. 6",null,null,null,null,null,null,null,"Устье с, Пионерская ул, д. 6",null,null,null,null,null,null,"Устье с, Пионерская ул, д. 6",null,null,null,null,null,null,null,null,"Устье с, Пионерская ул, д. 6",null,null,null,null,"Устье с, Пионерская ул, д. 6",null,null,null,null,null,null,null,null,"Устье с, Пионерская ул, д. 6",null,null,null,null,"Устье с, Пионерская ул, д. 6",null,null,null,null,"Устье с, Пионерская ул, д. 6",null,null,"Устье с, Пионерская ул, д. 6",null,null,null,null,null,null,null,null,null,null,null,null,"Общий счет РО+"]
["Устье с, Пионерская ул, д.7",{"$f":"\"Устье с, Пионерская ул, д.7\"","v":"Устье с, Пионерская ул, д.7"},{"$f":"\"Устье с, Пионерская ул, д.7\"","v":"Устье с, Пионерская ул, д.7"},{"$f":"\"Устье с, Пионерская ул, д.7\"","v":"Устье с, Пионерская ул, д.7"},{"$f":"\"Устье с, Пионерская ул, д.7\"","v":"Устье с, Пионерская ул, д.7"},"Устье с, Пионерская ул, д.7",null,null,null,null,null,null,null,{"$f":"\"Устье с, Пионерская ул, д.7\"","v":"Устье с, Пионерская ул, д.7"},null,null,null,null,null,null,null,null,null,null,null,null,null,null,null,null,"Устье с, Пионерская ул, д. 7",null,null,null,null,"Устье с, Пионерская ул, д. 7",null,null,null,null,null,null,null,null,null,null,"Устье с, Пионерская ул, д. 7",null,null,null,null,null,null,"Устье с, Пионерская ул, д. 7",null,null,null,null,null,"Устье с, Пионерская ул, д. 7",null,null,null,null,null,null,null,null,"Устье с, Пионерская ул, д. 7",null,null,null,null,null,"Устье с, Пионерская ул, д. 7",null,null,null,null,null,null,null,"Устье с, Пионерская ул, д. 7",null,null,null,null,null,null,"Устье с, Пионерская ул, д. 7",null,null,null,null,null,null,null,null,"Устье с, Пионерская ул, д. 7",null,null,null,null,"Устье с, Пионерская ул, д. 7",null,null,null,null,null,null,null,null,"Устье с, Пионерская ул, д. 7",null,null,null,null,"Устье с, Пионерская ул, д. 7",null,null,null,null,"Устье с, Пионерская ул, д. 7",null,null,"Устье с, Пионерская ул, д. 7",null,null,null,null,null,null,null,null,null,null,null,null,"Общий счет РО+"]
["Устье с, Пионерская ул, д.8",{"$f":"\"Устье с, Пионерская ул, д.8\"","v":"Устье с, Пионерская ул, д.8"},{"$f":"\"Устье с, Пионерская ул, д.8\"","v":"Устье с, Пионерская ул, д.8"},{"$f":"\"Устье с, Пионерская ул, д.8\"","v":"Устье с, Пионерская ул, д.8"},{"$f":"\"Устье с, Пионерская ул, д.8\"","v":"Устье с, Пионерская ул, д.8"},"Устье с, Пионерская ул, д.8",null,null,null,null,null,null,null,{"$f":"\"Устье с, Пионерская ул, д.8\"","v":"Устье с, Пионерская ул, д.8"},null,null,null,null,null,null,null,null,null,null,null,null,null,null,null,null,"Устье с, Пионерская ул, д. 8",null,null,null,null,"Устье с, Пионерская ул, д. 8",null,null,null,null,null,null,null,null,null,null,"Устье с, Пионерская ул, д. 8",null,null,null,null,null,null,"Устье с, Пионерская ул, д. 8",null,null,null,null,null,"Устье с, Пионерская ул, д. 8",null,null,null,null,null,null,null,null,"Устье с, Пионерская ул, д. 8",null,null,null,null,null,"Устье с, Пионерская ул, д. 8",null,null,null,null,null,null,null,"Устье с, Пионерская ул, д. 8",null,null,null,null,null,null,"Устье с, Пионерская ул, д. 8",null,null,null,null,null,null,null,null,"Устье с, Пионерская ул, д. 8",null,null,null,null,"Устье с, Пионерская ул, д. 8",null,null,null,null,null,null,null,null,null,null,null,null,null,null,null,null,null,null,null,null,null,null,null,null,null,null,null,null,null,null,null,null,null,null,"Специальный счет РО + учёт   320,40","Признан аварийным. Постановление 956 от 19.06.2024","Исключен 07.11.2024 счет закрыт 16.01.2025"]
["Устье с, Пионерская ул, д.9",{"$f":"\"Устье с, Пионерская ул, д.9\"","v":"Устье с, Пионерская ул, д.9"},{"$f":"\"Устье с, Пионерская ул, д.9\"","v":"Устье с, Пионерская ул, д.9"},{"$f":"\"Устье с, Пионерская ул, д.9\"","v":"Устье с, Пионерская ул, д.9"},{"$f":"\"Устье с, Пионерская ул, д.9\"","v":"Устье с, Пионерская ул, д.9"},"Устье с, Пионерская ул, д.9",null,null,null,null,null,null,null,{"$f":"\"Устье с, Пионерская ул, д.9\"","v":"Устье с, Пионерская ул, д.9"},null,null,null,null,null,null,null,null,null,null,null,null,null,null,null,null,"Устье с, Пионерская ул, д. 9",null,null,null,null,null,null,null,null,null,null,null,null,null,null,null,null,null,null,null,null,null,null,null,null,null,null,null,null,null,null,null,null,null,null,null,null,null,null,null,null,null,null,null,null,null,null,null,null,null,null,null,null,null,null,null,null,null,null,null,null,null,null,null,null,null,null,null,null,null,null,null,null,null,null,null,null,null,null,null,null,null,null,null,null,null,null,null,null,null,null,null,null,null,null,null,null,null,null,null,null,null,null,null,null,null,null,null,"Общий счет РО - 225,50","4-х квартирный","Исключен 01.04.2019"]
["Устье с, Пионерская ул, д.11",{"$f":"\"Устье с, Пионерская ул, д.11\"","v":"Устье с, Пионерская ул, д.11"},{"$f":"\"Устье с, Пионерская ул, д.11\"","v":"Устье с, Пионерская ул, д.11"},{"$f":"\"Устье с, Пионерская ул, д.11\"","v":"Устье с, Пионерская ул, д.11"},{"$f":"\"Устье с, Пионерская ул, д.11\"","v":"Устье с, Пионерская ул, д.11"},"Устье с, Пионерская ул, д.11",null,null,null,null,null,null,null,{"$f":"\"Устье с, Пионерская ул, д.11\"","v":"Устье с, Пионерская ул, д.11"},null,null,null,null,null,null,null,null,null,null,null,null,null,null,null,null,"Устье с, Пионерская ул, д. 11",null,null,null,null,"Устье с, Пионерская ул, д. 11",null,null,null,null,null,null,null,null,null,null,"Устье с, Пионерская ул, д. 11",null,null,null,null,null,null,"Устье с, Пионерская ул, д. 11",null,null,null,null,null,"Устье с, Пионерская ул, д. 11",null,null,null,null,null,null,null,null,"Устье с, Пионерская ул, д. 11",null,null,null,null,null,"Устье с, Пионерская ул, д. 11",null,null,null,null,null,null,null,"Устье с, Пионерская ул, д. 11",null,null,null,null,null,null,"Устье с, Пионерская ул, д. 11",null,null,null,null,null,null,null,null,"Устье с, Пионерская ул, д. 11",null,null,null,null,"Устье с, Пионерская ул, д. 11",null,null,null,null,null,null,null,null,"Устье с, Пионерская ул, д. 11",null,null,null,null,"Устье с, Пионерская ул, д. 11",null,null,null,null,"Устье с, Пионерская ул, д. 11",null,null,"Устье с, Пионерская ул, д. 11",null,null,null,null,null,null,null,null,null,null,null,null,"Общий счет РО+"]
["Устье с, Профоюзная ул, д.5",{"$f":"\"Устье с, Профоюзная ул, д.5\"","v":"Устье с, Профоюзная ул, д.5"},{"$f":"\"Устье с, Профоюзная ул, д.5\"","v":"Устье с, Профоюзная ул, д.5"},{"$f":"\"Устье с, Профоюзная ул, д.5\"","v":"Устье с, Профоюзная ул, д.5"},{"$f":"\"Устье с, Профоюзная ул, д.5\"","v":"Устье с, Профоюзная ул, д.5"},"Устье с, Профоюзная ул, д.5",null,null,null,null,null,null,null,{"$f":"\"Устье с, Профоюзная ул, д.5\"","v":"Устье с, Профоюзная ул, д.5"},null,null,null,null,null,null,null,null,null,null,null,null,null,null,null,null,null,null,null,null,null,null,null,null,null,null,null,null,null,null,null,null,null,null,null,null,null,null,null,null,null,null,null,null,null,null,null,null,null,null,null,null,null,null,null,null,null,null,null,null,null,null,null,null,null,null,null,null,null,null,null,null,null,null,null,null,null,null,null,null,null,null,null,null,null,null,null,null,null,null,null,null,null,null,null,null,null,null,null,null,null,null,null,null,null,null,null,null,null,null,null,null,null,null,null,null,null,null,null,null,null,null,null,null,"Общий счет РО 245,80","Признан аварийным. Заключение № 27 от 25.12.2017","Исключен 30.11.2018"]
["Устье с, Профоюзная ул, д.50",{"$f":"\"Устье с, Профоюзная ул, д.50\"","v":"Устье с, Профоюзная ул, д.50"},{"$f":"\"Устье с, Профоюзная ул, д.50\"","v":"Устье с, Профоюзная ул, д.50"},{"$f":"\"Устье с, Профоюзная ул, д.50\"","v":"Устье с, Профоюзная ул, д.50"},{"$f":"\"Устье с, Профоюзная ул, д.50\"","v":"Устье с, Профоюзная ул, д.50"},"Устье с, Профоюзная ул, д.50",null,null,null,null,null,null,null,{"$f":"\"Устье с, Профоюзная ул, д.50\"","v":"Устье с, Профоюзная ул, д.50"},null,null,null,null,null,null,null,null,null,null,null,null,null,null,null,null,"Устье с, Профсоюзная ул, д. 50",null,null,null,null,"Устье с, Профсоюзная ул, д. 50",null,null,null,null,null,null,null,null,null,null,"Устье с, Профсоюзная ул, д. 50",null,null,null,null,null,null,null,null,null,null,null,null,null,null,null,null,null,null,null,null,null,null,null,null,null,null,null,null,null,null,null,null,null,null,null,null,null,null,null,null,null,null,null,null,null,null,null,null,null,null,null,null,null,null,null,null,null,null,null,null,null,null,null,null,null,null,null,null,null,null,null,null,null,null,null,null,null,null,null,null,null,null,null,null,null,null,null,null,null,null,null,"Общий счет РО - 338,70","Признан аварийным. Заключение № 6 от 22.04.2019","ССРО-ОС с 02.2015,   Исключен 27.07.2020   "]
["Устье с, Профоюзная ул, д.51",{"$f":"\"Устье с, Профоюзная ул, д.51\"","v":"Устье с, Профоюзная ул, д.51"},{"$f":"\"Устье с, Профоюзная ул, д.51\"","v":"Устье с, Профоюзная ул, д.51"},{"$f":"\"Устье с, Профоюзная ул, д.51\"","v":"Устье с, Профоюзная ул, д.51"},{"$f":"\"Устье с, Профоюзная ул, д.51\"","v":"Устье с, Профоюзная ул, д.51"},"Устье с, Профоюзная ул, д.51",null,null,null,null,null,null,null,{"$f":"\"Устье с, Профоюзная ул, д.51\"","v":"Устье с, Профоюзная ул, д.51"},null,null,null,null,null,null,null,null,null,null,null,null,null,null,null,null,"Устье с, Профсоюзная ул, д. 51",null,null,null,null,"Устье с, Профсоюзная ул, д. 51",null,null,null,null,null,null,null,null,null,null,"Устье с, Профсоюзная ул, д. 51",null,null,null,null,null,null,"Устье с, Профсоюзная ул, д. 51",null,null,null,null,null,"Устье с, Профсоюзная ул, д. 51",null,null,null,null,null,null,null,null,"Устье с, Профсоюзная ул, д. 51",null,null,null,null,null,"Устье с, Профсоюзная ул, д. 51",null,null,null,null,null,null,null,"Устье с, Профсоюзная ул, д. 51",null,null,null,null,null,null,"Устье с, Профсоюзная ул, д. 51",null,null,null,null,null,null,null,null,"Устье с, Профсоюзная ул, д. 51",null,null,null,null,"Устье с, Профсоюзная ул, д. 51",null,null,null,null,null,null,null,null,"Устье с, Профсоюзная ул, д. 51",null,null,null,null,"Устье с, Профсоюзная ул, д. 51",null,null,null,null,"Устье с, Профсоюзная ул, д. 51",null,null,"Устье с, Профсоюзная ул, д. 51",null,null,null,null,null,null,null,null,null,null,null,null,"Общий счет РО+"]
["Устье с, Спортивная ул, д.1",{"$f":"\"Устье с, Спортивная ул, д.1\"","v":"Устье с, Спортивная ул, д.1"},{"$f":"\"Устье с, Спортивная ул, д.1\"","v":"Устье с, Спортивная ул, д.1"},{"$f":"\"Устье с, Спортивная ул, д.1\"","v":"Устье с, Спортивная ул, д.1"},{"$f":"\"Устье с, Спортивная ул, д.1\"","v":"Устье с, Спортивная ул, д.1"},"Устье с, Спортивная ул, д.1",null,null,null,null,null,null,null,{"$f":"\"Устье с, Спортивная ул, д.1\"","v":"Устье с, Спортивная ул, д.1"},null,null,null,null,null,null,null,null,null,null,null,null,null,null,null,null,"Устье с, Спортивная ул, д. 1",null,null,null,null,"Устье с, Спортивная ул, д. 1",null,null,null,null,null,null,null,null,null,null,"Устье с, Спортивная ул, д. 1",null,null,null,null,null,null,"Устье с, Спортивная ул, д. 1",null,null,null,null,null,"Устье с, Спортивная ул, д. 1",null,null,null,null,null,null,null,null,"Устье с, Спортивная ул, д. 1",null,null,null,null,null,"Устье с, Спортивная ул, д. 1",null,null,null,null,null,null,null,"Устье с, Спортивная ул, д. 1",null,null,null,null,null,null,"Устье с, Спортивная ул, д. 1",null,null,null,null,null,null,null,null,"Устье с, Спортивная ул, д. 1",null,null,null,null,"Устье с, Спортивная ул, д. 1",null,null,null,null,null,null,null,null,"Устье с, Спортивная ул, д. 1",null,null,null,null,"Устье с, Спортивная ул, д. 1",null,null,null,null,"Устье с, Спортивная ул, д. 1",null,null,"Устье с, Спортивная ул, д. 1",null,null,null,null,null,null,null,null,null,null,null,null,"Общий счет РО+"]
["Устье с, Спортивная ул, д.2",{"$f":"\"Устье с, Спортивная ул, д.2\"","v":"Устье с, Спортивная ул, д.2"},{"$f":"\"Устье с, Спортивная ул, д.2\"","v":"Устье с, Спортивная ул, д.2"},{"$f":"\"Устье с, Спортивная ул, д.2\"","v":"Устье с, Спортивная ул, д.2"},{"$f":"\"Устье с, Спортивная ул, д.2\"","v":"Устье с, Спортивная ул, д.2"},"Устье с, Спортивная ул, д.2",null,null,null,null,null,null,null,{"$f":"\"Устье с, Спортивная ул, д.2\"","v":"Устье с, Спортивная ул, д.2"},null,null,null,null,null,null,null,null,null,null,null,null,null,null,null,null,"Устье с, Спортивная ул, д. 2",null,null,null,null,"Устье с, Спортивная ул, д. 2",null,null,null,null,null,null,null,null,null,null,"Устье с, Спортивная ул, д. 2",null,null,null,null,null,null,"Устье с, Спортивная ул, д. 2",null,null,null,null,null,"Устье с, Спортивная ул, д. 2",null,null,null,null,null,null,null,null,"Устье с, Спортивная ул, д. 2",null,null,null,null,null,"Устье с, Спортивная ул, д. 2",null,null,null,null,null,null,null,"Устье с, Спортивная ул, д. 2",null,null,null,null,null,null,"Устье с, Спортивная ул, д. 2",null,null,null,null,null,null,null,null,"Устье с, Спортивная ул, д. 2",null,null,null,null,"Устье с, Спортивная ул, д. 2",null,null,null,null,null,null,null,null,"Устье с, Спортивная ул, д. 2",null,null,null,null,"Устье с, Спортивная ул, д. 2",null,null,null,null,"Устье с, Спортивная ул, д. 2",null,null,"Устье с, Спортивная ул, д. 2",null,null,null,null,null,null,null,null,null,null,null,null,"Специальный счет РО + учет"]
["Устье с, Спортивная ул, д.3",{"$f":"\"Устье с, Спортивная ул, д.3\"","v":"Устье с, Спортивная ул, д.3"},{"$f":"\"Устье с, Спортивная ул, д.3\"","v":"Устье с, Спортивная ул, д.3"},{"$f":"\"Устье с, Спортивная ул, д.3\"","v":"Устье с, Спортивная ул, д.3"},{"$f":"\"Устье с, Спортивная ул, д.3\"","v":"Устье с, Спортивная ул, д.3"},"Устье с, Спортивная ул, д.3",null,null,null,null,null,null,null,{"$f":"\"Устье с, Спортивная ул, д.3\"","v":"Устье с, Спортивная ул, д.3"},null,null,null,null,null,null,null,null,null,null,null,null,null,null,null,null,"Устье с, Спортивная ул, д. 3",null,null,null,null,"Устье с, Спортивная ул, д. 3",null,null,null,null,null,null,null,null,null,null,"Устье с, Спортивная ул, д. 3",null,null,null,null,null,null,"Устье с, Спортивная ул, д. 3",null,null,null,null,null,"Устье с, Спортивная ул, д. 3",null,null,null,null,null,null,null,null,"Устье с, Спортивная ул, д. 3",null,null,null,null,null,"Устье с, Спортивная ул, д. 3",null,null,null,null,null,null,null,"Устье с, Спортивная ул, д. 3",null,null,null,null,null,null,"Устье с, Спортивная ул, д. 3",null,null,null,null,null,null,null,null,"Устье с, Спортивная ул, д. 3",null,null,null,null,"Устье с, Спортивная ул, д. 3",null,null,null,null,null,null,null,null,"Устье с, Спортивная ул, д. 3",null,null,null,null,"Устье с, Спортивная ул, д. 3",null,null,null,null,"Устье с, Спортивная ул, д. 3",null,null,"Устье с, Спортивная ул, д. 3",null,null,null,null,null,null,null,null,null,null,null,null,"Общий счет РО+"]
["Устье с, Спортивная ул, д.4",{"$f":"\"Устье с, Спортивная ул, д.4\"","v":"Устье с, Спортивная ул, д.4"},{"$f":"\"Устье с, Спортивная ул, д.4\"","v":"Устье с, Спортивная ул, д.4"},{"$f":"\"Устье с, Спортивная ул, д.4\"","v":"Устье с, Спортивная ул, д.4"},{"$f":"\"Устье с, Спортивная ул, д.4\"","v":"Устье с, Спортивная ул, д.4"},"Устье с, Спортивная ул, д.4",null,null,null,null,null,null,null,{"$f":"\"Устье с, Спортивная ул, д.4\"","v":"Устье с, Спортивная ул, д.4"},null,null,null,null,null,null,null,null,null,null,null,null,null,null,null,null,"Устье с, Спортивная ул, д. 4",null,null,null,null,"Устье с, Спортивная ул, д. 4",null,null,null,null,null,null,null,null,null,null,"Устье с, Спортивная ул, д. 4",null,null,null,null,null,null,"Устье с, Спортивная ул, д. 4",null,null,null,null,null,"Устье с, Спортивная ул, д. 4",null,null,null,null,null,null,null,null,"Устье с, Спортивная ул, д. 4",null,null,null,null,null,"Устье с, Спортивная ул, д. 4",null,null,null,null,null,null,null,"Устье с, Спортивная ул, д. 4",null,null,null,null,null,null,"Устье с, Спортивная ул, д. 4",null,null,null,null,null,null,null,null,"Устье с, Спортивная ул, д. 4",null,null,null,null,"Устье с, Спортивная ул, д. 4",null,null,null,null,null,null,null,null,"Устье с, Спортивная ул, д. 4",null,null,null,null,"Устье с, Спортивная ул, д. 4",null,null,null,null,"Устье с, Спортивная ул, д. 4",null,null,"Устье с, Спортивная ул, д. 4",null,null,null,null,null,null,null,null,null,null,null,null,"Общий счет РО+"]
["Устье с, Спортивная ул, д.6",{"$f":"\"Устье с, Спортивная ул, д.6\"","v":"Устье с, Спортивная ул, д.6"},{"$f":"\"Устье с, Спортивная ул, д.6\"","v":"Устье с, Спортивная ул, д.6"},{"$f":"\"Устье с, Спортивная ул, д.6\"","v":"Устье с, Спортивная ул, д.6"},{"$f":"\"Устье с, Спортивная ул, д.6\"","v":"Устье с, Спортивная ул, д.6"},"Устье с, Спортивная ул, д.6",null,null,null,null,null,null,null,{"$f":"\"Устье с, Спортивная ул, д.6\"","v":"Устье с, Спортивная ул, д.6"},null,null,null,null,null,null,null,null,null,null,null,null,null,null,null,null,"Устье с, Спортивная ул, д. 6",null,null,null,null,"Устье с, Спортивная ул, д. 6",null,null,null,null,null,null,null,null,null,null,"Устье с, Спортивная ул, д. 6",null,null,null,null,null,null,"Устье с, Спортивная ул, д. 6",null,null,null,null,null,"Устье с, Спортивная ул, д. 6",null,null,null,null,null,null,null,null,"Устье с, Спортивная ул, д. 6",null,null,null,null,null,"Устье с, Спортивная ул, д. 6",null,null,null,null,null,null,null,"Устье с, Спортивная ул, д. 6",null,null,null,null,null,null,"Устье с, Спортивная ул, д. 6",null,null,null,null,null,null,null,null,"Устье с, Спортивная ул, д. 6",null,null,null,null,"Устье с, Спортивная ул, д. 6",null,null,null,null,null,null,null,null,"Устье с, Спортивная ул, д. 6",null,null,null,null,"Устье с, Спортивная ул, д. 6",null,null,null,null,"Устье с, Спортивная ул, д. 6",null,null,"Устье с, Спортивная ул, д. 6",null,null,null,null,null,null,null,null,null,null,null,null,"Общий счет РО+"]
["Устье с, Юбилейная ул, д.9",{"$f":"\"Устье с, Юбилейная ул, д.9\"","v":"Устье с, Юбилейная ул, д.9"},{"$f":"\"Устье с, Юбилейная ул, д.9\"","v":"Устье с, Юбилейная ул, д.9"},{"$f":"\"Устье с, Юбилейная ул, д.9\"","v":"Устье с, Юбилейная ул, д.9"},{"$f":"\"Устье с, Юбилейная ул, д.9\"","v":"Устье с, Юбилейная ул, д.9"},"Устье с, Юбилейная ул, д.9",null,null,null,null,null,null,null,{"$f":"\"Устье с, Юбилейная ул, д.9\"","v":"Устье с, Юбилейная ул, д.9"},null,null,null,null,null,null,null,null,null,null,null,null,null,null,null,null,"Устье с, Юбилейная ул, д. 9",null,null,null,null,"Устье с, Юбилейная ул, д. 9",null,null,null,null,null,null,null,null,null,null,"Устье с, Юбилейная ул, д. 9",null,null,null,null,null,null,"Устье с, Юбилейная ул, д. 9",null,null,null,null,null,"Устье с, Юбилейная ул, д. 9",null,null,null,null,null,null,null,null,"Устье с, Юбилейная ул, д. 9",null,null,null,null,null,"Устье с, Юбилейная ул, д. 9",null,null,null,null,null,null,null,"Устье с, Юбилейная ул, д. 9",null,null,null,null,null,null,"Устье с, Юбилейная ул, д. 9",null,null,null,null,null,null,null,null,"Устье с, Юбилейная ул, д. 9",null,null,null,null,"Устье с, Юбилейная ул, д. 9",null,null,null,null,null,null,null,null,"Устье с, Юбилейная ул, д. 9",null,null,null,null,"Устье с, Юбилейная ул, д. 9",null,null,null,null,"Устье с, Юбилейная ул, д. 9",null,null,"Устье с, Юбилейная ул, д. 9",null,null,null,null,null,null,null,null,null,null,null,null,"Общий счет РО+"]
["Устье с, Юбилейная ул, д.10",{"$f":"\"Устье с, Юбилейная ул, д.10\"","v":"Устье с, Юбилейная ул, д.10"},{"$f":"\"Устье с, Юбилейная ул, д.10\"","v":"Устье с, Юбилейная ул, д.10"},{"$f":"\"Устье с, Юбилейная ул, д.10\"","v":"Устье с, Юбилейная ул, д.10"},{"$f":"\"Устье с, Юбилейная ул, д.10\"","v":"Устье с, Юбилейная ул, д.10"},"Устье с, Юбилейная ул, д.10",null,null,null,null,null,null,null,{"$f":"\"Устье с, Юбилейная ул, д.10\"","v":"Устье с, Юбилейная ул, д.10"},null,null,null,null,null,null,null,null,null,null,null,null,null,null,null,null,"Устье с, Юбилейная ул, д. 10",null,null,null,null,"Устье с, Юбилейная ул, д. 10",null,null,null,null,null,null,null,null,null,null,"Устье с, Юбилейная ул, д. 10",null,null,null,null,null,null,"Устье с, Юбилейная ул, д. 10",null,null,null,null,null,"Устье с, Юбилейная ул, д. 10",null,null,null,null,null,null,null,null,"Устье с, Юбилейная ул, д. 10",null,null,null,null,null,"Устье с, Юбилейная ул, д. 10",null,null,null,null,null,null,null,"Устье с, Юбилейная ул, д. 10",null,null,null,null,null,null,"Устье с, Юбилейная ул, д. 10",null,null,null,null,null,null,null,null,"Устье с, Юбилейная ул, д. 10",null,null,null,null,"Устье с, Юбилейная ул, д. 10",null,null,null,null,null,null,null,null,"Устье с, Юбилейная ул, д. 10",null,null,null,null,"Устье с, Юбилейная ул, д. 10",null,null,null,null,"Устье с, Юбилейная ул, д. 10",null,null,"Устье с, Юбилейная ул, д. 10",null,null,null,null,null,null,null,null,null,null,null,null,"Общий счет РО+"]
["Устье с, Юбилейная ул, д.11",{"$f":"\"Устье с, Юбилейная ул, д.11\"","v":"Устье с, Юбилейная ул, д.11"},{"$f":"\"Устье с, Юбилейная ул, д.11\"","v":"Устье с, Юбилейная ул, д.11"},{"$f":"\"Устье с, Юбилейная ул, д.11\"","v":"Устье с, Юбилейная ул, д.11"},{"$f":"\"Устье с, Юбилейная ул, д.11\"","v":"Устье с, Юбилейная ул, д.11"},"Устье с, Юбилейная ул, д.11",null,null,null,null,null,null,null,{"$f":"\"Устье с, Юбилейная ул, д.11\"","v":"Устье с, Юбилейная ул, д.11"},null,null,null,null,null,null,null,null,null,null,null,null,null,null,null,null,"Устье с, Юбилейная ул, д. 11",null,null,null,null,"Устье с, Юбилейная ул, д. 11",null,null,null,null,null,null,null,null,null,null,"Устье с, Юбилейная ул, д. 11",null,null,null,null,null,null,"Устье с, Юбилейная ул, д. 11",null,null,null,null,null,"Устье с, Юбилейная ул, д. 11",null,null,null,null,null,null,null,null,"Устье с, Юбилейная ул, д. 11",null,null,null,null,null,"Устье с, Юбилейная ул, д. 11",null,null,null,null,null,null,null,"Устье с, Юбилейная ул, д. 11",null,null,null,null,null,null,"Устье с, Юбилейная ул, д. 11",null,null,null,null,null,null,null,null,"Устье с, Юбилейная ул, д. 11",null,null,null,null,"Устье с, Юбилейная ул, д. 11",null,null,null,null,null,null,null,null,"Устье с, Юбилейная ул, д. 11",null,null,null,null,"Устье с, Юбилейная ул, д. 11",null,null,null,null,"Устье с, Юбилейная ул, д. 11",null,null,"Устье с, Юбилейная ул, д. 11",null,null,null,null,null,null,null,null,null,null,null,null,"Специальный счет РО + учет"]
["Устье с, Юбилейная ул, д.12А",{"$f":"\"Устье с, Юбилейная ул, д.12А\"","v":"Устье с, Юбилейная ул, д.12А"},{"$f":"\"Устье с, Юбилейная ул, д.12А\"","v":"Устье с, Юбилейная ул, д.12А"},{"$f":"\"Устье с, Юбилейная ул, д.12А\"","v":"Устье с, Юбилейная ул, д.12А"},{"$f":"\"Устье с, Юбилейная ул, д.12А\"","v":"Устье с, Юбилейная ул, д.12А"},"Устье с, Юбилейная ул, д.12А",null,null,null,null,null,null,null,{"$f":"\"Устье с, Юбилейная ул, д.12А\"","v":"Устье с, Юбилейная ул, д.12А"},null,null,null,null,null,null,null,null,null,null,null,null,null,null,null,null,"Устье с, Юбилейная ул, д. 12А",null,null,null,null,"Устье с, Юбилейная ул, д. 12А",null,null,null,null,null,null,null,null,null,null,"Устье с, Юбилейная ул, д. 12А",null,null,null,null,null,null,"Устье с, Юбилейная ул, д. 12А",null,null,null,null,null,"Устье с, Юбилейная ул, д. 12А",null,null,null,null,null,null,null,null,"Устье с, Юбилейная ул, д. 12А",null,null,null,null,null,"Устье с, Юбилейная ул, д. 12А",null,null,null,null,null,null,null,"Устье с, Юбилейная ул, д. 12А",null,null,null,null,null,null,"Устье с, Юбилейная ул, д. 12А",null,null,null,null,null,null,null,null,"Устье с, Юбилейная ул, д. 12А",null,null,null,null,"Устье с, Юбилейная ул, д. 12А",null,null,null,null,null,null,null,null,"Устье с, Юбилейная ул, д. 12А",null,null,null,null,"Устье с, Юбилейная ул, д. 12А",null,null,null,null,"Устье с, Юбилейная ул, д. 12А",null,null,"Устье с, Юбилейная ул, д. 12А",null,null,null,null,null,null,null,null,null,null,null,null,"Общий счет РО+"]
["Устье с, Юбилейная ул, д.12",{"$f":"\"Устье с, Юбилейная ул, д.12\"","v":"Устье с, Юбилейная ул, д.12"},{"$f":"\"Устье с, Юбилейная ул, д.12\"","v":"Устье с, Юбилейная ул, д.12"},{"$f":"\"Устье с, Юбилейная ул, д.12\"","v":"Устье с, Юбилейная ул, д.12"},{"$f":"\"Устье с, Юбилейная ул, д.12\"","v":"Устье с, Юбилейная ул, д.12"},"Устье с, Юбилейная ул, д.12",null,null,null,null,null,null,null,{"$f":"\"Устье с, Юбилейная ул, д.12\"","v":"Устье с, Юбилейная ул, д.12"},null,null,null,null,null,null,null,null,null,null,null,null,null,null,null,null,"Устье с, Юбилейная ул, д. 12",null,null,null,null,"Устье с, Юбилейная ул, д. 12",null,null,null,null,null,null,null,null,null,null,"Устье с, Юбилейная ул, д. 12",null,null,null,null,null,null,"Устье с, Юбилейная ул, д. 12",null,null,null,null,null,"Устье с, Юбилейная ул, д. 12",null,null,null,null,null,null,null,null,"Устье с, Юбилейная ул, д. 12",null,null,null,null,null,"Устье с, Юбилейная ул, д. 12",null,null,null,null,null,null,null,"Устье с, Юбилейная ул, д. 12",null,null,null,null,null,null,"Устье с, Юбилейная ул, д. 12",null,null,null,null,null,null,null,null,"Устье с, Юбилейная ул, д. 12",null,null,null,null,"Устье с, Юбилейная ул, д. 12",null,null,null,null,null,null,null,null,"Устье с, Юбилейная ул, д. 12",null,null,null,null,"Устье с, Юбилейная ул, д. 12",null,null,null,null,"Устье с, Юбилейная ул, д. 12",null,null,"Устье с, Юбилейная ул, д. 12",null,null,null,null,null,null,null,null,null,null,null,null,"Общий счет РО+"]
["Устье с, Юбилейная ул, д.13",{"$f":"\"Устье с, Юбилейная ул, д.13\"","v":"Устье с, Юбилейная ул, д.13"},{"$f":"\"Устье с, Юбилейная ул, д.13\"","v":"Устье с, Юбилейная ул, д.13"},{"$f":"\"Устье с, Юбилейная ул, д.13\"","v":"Устье с, Юбилейная ул, д.13"},{"$f":"\"Устье с, Юбилейная ул, д.13\"","v":"Устье с, Юбилейная ул, д.13"},"Устье с, Юбилейная ул, д.13",null,null,null,null,null,null,null,{"$f":"\"Устье с, Юбилейная ул, д.13\"","v":"Устье с, Юбилейная ул, д.13"},null,null,null,null,null,null,null,null,null,null,null,null,null,null,null,null,"Устье с, Юбилейная ул, д. 13",null,null,null,null,"Устье с, Юбилейная ул, д. 13",null,null,null,null,null,null,null,null,null,null,"Устье с, Юбилейная ул, д. 13",null,null,null,null,null,null,"Устье с, Юбилейная ул, д. 13",null,null,null,null,null,"Устье с, Юбилейная ул, д. 13",null,null,null,null,null,null,null,null,"Устье с, Юбилейная ул, д. 13",null,null,null,null,null,"Устье с, Юбилейная ул, д. 13",null,null,null,null,null,null,null,"Устье с, Юбилейная ул, д. 13",null,null,null,null,null,null,"Устье с, Юбилейная ул, д. 13",null,null,null,null,null,null,null,null,"Устье с, Юбилейная ул, д. 13",null,null,null,null,"Устье с, Юбилейная ул, д. 13",null,null,null,null,null,null,null,null,"Устье с, Юбилейная ул, д. 13",null,null,null,null,"Устье с, Юбилейная ул, д. 13",null,null,null,null,"Устье с, Юбилейная ул, д. 13",null,null,"Устье с, Юбилейная ул, д. 13",null,null,null,null,null,null,null,null,null,null,null,null,"Общий счет РО+"]
[null,null,null,null,null,null,null,null,null,null,null,null,null,null,null,null,null,null,null,null,null,null,null,null,null,null,null,null,null,null,null,null,null,null,null,"Устье с, Юбилейная ул, д. 15",null,null,null,null,null,null,null,null,null,null,"Устье с, Юбилейная ул, д. 15",null,null,null,null,null,null,"Устье с, Юбилейная ул, д. 15",null,null,null,null,null,"Устье с, Юбилейная ул, д. 15",null,null,null,null,null,null,null,null,"Устье с, Юбилейная ул, д. 15",null,null,null,null,null,"Устье с, Юбилейная ул, д. 15",null,null,null,null,null,null,null,"Устье с, Юбилейная ул, д. 15",null,null,null,null,null,null,"Устье с, Юбилейная ул, д. 15",null,null,null,null,null,null,null,null,"Устье с, Юбилейная ул, д. 15",null,null,null,null,"Устье с, Юбилейная ул, д. 15",null,null,null,null,null,null,null,null,"Устье с, Юбилейная ул, д. 15",null,null,null,null,"Устье с, Юбилейная ул, д. 15",null,null,null,null,"Устье с, Юбилейная ул, д. 15",null,null,"Устье с, Юбилейная ул, д. 15",null,null,null,null,null,null,null,null,null,null,null,null,"Общий счет РО "]
[null,null,null,null,null,null,null,null,null,null,null,null,null,null,null,null,null,null,null,null,null,null,null,null,null,null,null,null,null,null,"Устье с, Яковлева ул, д. 9",null,null,null,null,"Устье с, Яковлева ул, д. 9",null,null,null,null,null,null,null,null,null,null,"Устье с, Яковлева ул, д. 9",null,null,null,null,null,null,"Устье с, Яковлева ул, д. 9",null,null,null,null,null,"Устье с, Яковлева ул, д. 9",null,null,null,null,null,null,null,null,"Устье с, Яковлева ул, д. 9",null,null,null,null,null,"Устье с, Яковлева ул, д. 9",null,null,null,null,null,null,null,"Устье с, Яковлева ул, д. 9",null,null,null,null,null,null,"Устье с, Яковлева ул, д. 9",null,null,null,null,null,null,null,null,"Устье с, Яковлева ул, д. 9",null,null,null,null,"Устье с, Яковлева ул, д. 9",null,null,null,null,null,null,null,null,null,null,null,null,null,null,null,null,null,null,null,null,null,null,null,null,null,null,null,null,null,null,null,null,null,null,"Общий счет РО+485,90","Признан аварийным. Постановление № 486 от 18.03.2024","Исключен 07.11.2024"]
["Устье с, Яковлева ул, д.11",null,null,null,null,null,null,null,null,null,null,null,null,null,null,null,null,null,null,null,null,null,null,null,null,null,null,null,null,null,null,null,null,null,null,null,null,null,null,null,null,null,null,null,null,null,null,null,null,null,null,null,null,null,null,null,null,null,null,null,null,null,null,null,null,null,null,null,null,null,null,null,null,null,null,null,null,null,null,null,null,null,null,null,null,null,null,null,null,null,null,null,null,null,null,null,null,null,null,null,null,null,null,null,null,null,null,null,null,null,null,null,null,null,null,null,null,null,null,null,null,null,null,null,null,null,null,null,null,null,null,null,null,null,null,null,null,null,null,null,"Исключен"]
["Устье с, Яковлева ул, д.12",{"$f":"\"Устье с, Яковлева ул, д.12\"","v":"Устье с, Яковлева ул, д.12"},{"$f":"\"Устье с, Яковлева ул, д.12\"","v":"Устье с, Яковлева ул, д.12"},{"$f":"\"Устье с, Яковлева ул, д.12\"","v":"Устье с, Яковлева ул, д.12"},{"$f":"\"Устье с, Яковлева ул, д.12\"","v":"Устье с, Яковлева ул, д.12"},"Устье с, Яковлева ул, д.12",null,null,null,null,null,null,null,{"$f":"\"Устье с, Яковлева ул, д.12\"","v":"Устье с, Яковлева ул, д.12"},null,null,null,null,null,null,null,null,null,null,null,null,null,null,null,null,"Устье с, Яковлева ул, д. 12",null,null,null,null,"Устье с, Яковлева ул, д. 12",null,null,null,null,null,null,null,null,null,null,"Устье с, Яковлева ул, д. 12",null,null,null,null,null,null,"Устье с, Яковлева ул, д. 12",null,null,null,null,null,"Устье с, Яковлева ул, д. 12",null,null,null,null,null,null,null,null,"Устье с, Яковлева ул, д. 12",null,null,null,null,null,"Устье с, Яковлева ул, д. 12",null,null,null,null,null,null,null,"Устье с, Яковлева ул, д. 12",null,null,null,null,null,null,"Устье с, Яковлева ул, д. 12",null,null,null,null,null,null,null,null,"Устье с, Яковлева ул, д. 12",null,null,null,null,"Устье с, Яковлева ул, д. 12",null,null,null,null,null,null,null,null,"Устье с, Яковлева ул, д. 12",null,null,null,null,"Устье с, Яковлева ул, д. 12",null,null,null,null,"Устье с, Яковлева ул, д. 12",null,null,"Устье с, Яковлева ул, д. 12",null,null,null,null,null,null,null,null,null,null,null,null,"Общий счет РО+"]
["Устье с, Яковлева ул, д.13",{"$f":"\"Устье с, Яковлева ул, д.13\"","v":"Устье с, Яковлева ул, д.13"},{"$f":"\"Устье с, Яковлева ул, д.13\"","v":"Устье с, Яковлева ул, д.13"},{"$f":"\"Устье с, Яковлева ул, д.13\"","v":"Устье с, Яковлева ул, д.13"},{"$f":"\"Устье с, Яковлева ул, д.13\"","v":"Устье с, Яковлева ул, д.13"},"Устье с, Яковлева ул, д.13",null,null,null,null,null,null,null,{"$f":"\"Устье с, Яковлева ул, д.13\"","v":"Устье с, Яковлева ул, д.13"},null,null,null,null,null,null,null,null,null,null,null,null,null,null,null,null,"Устье с, Яковлева ул, д. 13",null,null,null,null,"Устье с, Яковлева ул, д. 13",null,null,null,null,null,null,null,null,null,null,"Устье с, Яковлева ул, д. 13",null,null,null,null,null,null,"Устье с, Яковлева ул, д. 13",null,null,null,null,null,"Устье с, Яковлева ул, д. 13",null,null,null,null,null,null,null,null,"Устье с, Яковлева ул, д. 13",null,null,null,null,null,"Устье с, Яковлева ул, д. 13",null,null,null,null,null,null,null,"Устье с, Яковлева ул, д. 13",null,null,null,null,null,null,"Устье с, Яковлева ул, д. 13",null,null,null,null,null,null,null,null,"Устье с, Яковлева ул, д. 13",null,null,null,null,"Устье с, Яковлева ул, д. 13",null,null,null,null,null,null,null,null,"Устье с, Яковлева ул, д. 13",null,null,null,null,"Устье с, Яковлева ул, д. 13",null,null,null,null,"Устье с, Яковлева ул, д. 13",null,null,"Устье с, Яковлева ул, д. 13",null,null,null,null,null,null,null,null,null,null,null,null,"Общий счет РО+"]
["Устье с, Яковлева ул, д.17",{"$f":"\"Устье с, Яковлева ул, д.17\"","v":"Устье с, Яковлева ул, д.17"},{"$f":"\"Устье с, Яковлева ул, д.17\"","v":"Устье с, Яковлева ул, д.17"},{"$f":"\"Устье с, Яковлева ул, д.17\"","v":"Устье с, Яковлева ул, д.17"},{"$f":"\"Устье с, Яковлева ул, д.17\"","v":"Устье с, Яковлева ул, д.17"},"Устье с, Яковлева ул, д.17",null,null,null,null,null,null,null,{"$f":"\"Устье с, Яковлева ул, д.17\"","v":"Устье с, Яковлева ул, д.17"},null,null,null,null,null,null,null,null,null,null,null,null,null,null,null,null,"Устье с, Яковлева ул, д. 17",null,null,null,null,"Устье с, Яковлева ул, д. 17",null,null,null,null,null,null,null,null,null,null,"Устье с, Яковлева ул, д. 17",null,null,null,null,null,null,"Устье с, Яковлева ул, д. 17",null,null,null,null,null,"Устье с, Яковлева ул, д. 17",null,null,null,null,null,null,null,null,"Устье с, Яковлева ул, д. 17",null,null,null,null,null,"Устье с, Яковлева ул, д. 17",null,null,null,null,null,null,null,"Устье с, Яковлева ул, д. 17",null,null,null,null,null,null,"Устье с, Яковлева ул, д. 17",null,null,null,null,null,null,null,null,"Устье с, Яковлева ул, д. 17",null,null,null,null,"Устье с, Яковлева ул, д. 17",null,null,null,null,null,null,null,null,"Устье с, Яковлева ул, д. 17",null,null,null,null,"Устье с, Яковлева ул, д. 17",null,null,null,null,"Устье с, Яковлева ул, д. 17",null,null,"Устье с, Яковлева ул, д. 17",null,null,null,null,null,null,null,null,null,null,null,null,"Общий счет РО+"]
["Устье с, Яковлева ул, д.19",{"$f":"\"Устье с, Яковлева ул, д.19\"","v":"Устье с, Яковлева ул, д.19"},{"$f":"\"Устье с, Яковлева ул, д.19\"","v":"Устье с, Яковлева ул, д.19"},{"$f":"\"Устье с, Яковлева ул, д.19\"","v":"Устье с, Яковлева ул, д.19"},{"$f":"\"Устье с, Яковлева ул, д.19\"","v":"Устье с, Яковлева ул, д.19"},"Устье с, Яковлева ул, д.19",null,null,null,null,null,null,null,{"$f":"\"Устье с, Яковлева ул, д.19\"","v":"Устье с, Яковлева ул, д.19"},null,null,null,null,null,null,null,null,null,null,null,null,null,null,null,null,"Устье с, Яковлева ул, д. 19",null,null,null,null,"Устье с, Яковлева ул, д. 19",null,null,null,null,null,null,null,null,null,null,"Устье с, Яковлева ул, д. 19",null,null,null,null,null,null,"Устье с, Яковлева ул, д. 19",null,null,null,null,null,"Устье с, Яковлева ул, д. 19",null,null,null,null,null,null,null,null,"Устье с, Яковлева ул, д. 19",null,null,null,null,null,"Устье с, Яковлева ул, д. 19",null,null,null,null,null,null,null,"Устье с, Яковлева ул, д. 19",null,null,null,null,null,null,"Устье с, Яковлева ул, д. 19",null,null,null,null,null,null,null,null,"Устье с, Яковлева ул, д. 19",null,null,null,null,"Устье с, Яковлева ул, д. 19",null,null,null,null,null,null,null,null,"Устье с, Яковлева ул, д. 19",null,null,null,null,"Устье с, Яковлева ул, д. 19",null,null,null,null,"Устье с, Яковлева ул, д. 19",null,null,"Устье с, Яковлева ул, д. 19",null,null,null,null,null,null,null,null,null,null,null,null,"Общий счет РО+"]
[null,null,null,null,null,null,null,null,null,null,null,null,null,null,null,null,null,null,null,null,null,null,null,null,null,null,null,null,null,null,"Устье с, Яковлева ул, д. 19А",null,null,null,null,"Устье с, Яковлева ул, д. 19А",null,null,null,null,null,null,null,null,null,null,"Устье с, Яковлева ул, д. 19А",null,null,null,null,null,null,"Устье с, Яковлева ул, д. 19А",null,null,null,null,null,"Устье с, Яковлева ул, д. 19А",null,null,null,null,null,null,null,null,"Устье с, Яковлева ул, д. 19А",null,null,null,null,null,"Устье с, Яковлева ул, д. 19А",null,null,null,null,null,null,null,"Устье с, Яковлева ул, д. 19А",null,null,null,null,null,null,"Устье с, Яковлева ул, д. 19А",null,null,null,null,null,null,null,null,"Устье с, Яковлева ул, д. 19А",null,null,null,null,"Устье с, Яковлева ул, д. 19А",null,null,null,null,null,null,null,null,"Устье с, Яковлева ул, д. 19А",null,null,null,null,"Устье с, Яковлева ул, д. 19А",null,null,null,null,"Устье с, Яковлева ул, д. 19А",null,null,"Устье с, Яковлева ул, д. 19А",null,null,null,null,null,null,null,null,null,null,null,null,"Общий счет РО+"]
["Устье с, Яковлева ул, д.21",{"$f":"\"Устье с, Яковлева ул, д.21\"","v":"Устье с, Яковлева ул, д.21"},{"$f":"\"Устье с, Яковлева ул, д.21\"","v":"Устье с, Яковлева ул, д.21"},{"$f":"\"Устье с, Яковлева ул, д.21\"","v":"Устье с, Яковлева ул, д.21"},{"$f":"\"Устье с, Яковлева ул, д.21\"","v":"Устье с, Яковлева ул, д.21"},"Устье с, Яковлева ул, д.21",null,null,null,null,null,null,null,{"$f":"\"Устье с, Яковлева ул, д.21\"","v":"Устье с, Яковлева ул, д.21"},null,null,null,null,null,null,null,null,null,null,null,null,null,null,null,null,"Устье с, Яковлева ул, д. 21",null,null,null,null,"Устье с, Яковлева ул, д. 21",null,null,null,null,null,null,null,null,null,null,"Устье с, Яковлева ул, д. 21",null,null,null,null,null,null,"Устье с, Яковлева ул, д. 21",null,null,null,null,null,"Устье с, Яковлева ул, д. 21",null,null,null,null,null,null,null,null,"Устье с, Яковлева ул, д. 21",null,null,null,null,null,"Устье с, Яковлева ул, д. 21",null,null,null,null,null,null,null,"Устье с, Яковлева ул, д. 21",null,null,null,null,null,null,"Устье с, Яковлева ул, д. 21",null,null,null,null,null,null,null,null,"Устье с, Яковлева ул, д. 21",null,null,null,null,"Устье с, Яковлева ул, д. 21",null,null,null,null,null,null,null,null,"Устье с, Яковлева ул, д. 21",null,null,null,null,"Устье с, Яковлева ул, д. 21",null,null,null,null,"Устье с, Яковлева ул, д. 21",null,null,"Устье с, Яковлева ул, д. 21",null,null,null,null,null,null,null,null,null,null,null,null,"Общий счет РО+",null,"ССРО-ОС с 18.12.2020"]
["Устье с, Яковлева ул, д.23",{"$f":"\"Устье с, Яковлева ул, д.23\"","v":"Устье с, Яковлева ул, д.23"},{"$f":"\"Устье с, Яковлева ул, д.23\"","v":"Устье с, Яковлева ул, д.23"},{"$f":"\"Устье с, Яковлева ул, д.23\"","v":"Устье с, Яковлева ул, д.23"},{"$f":"\"Устье с, Яковлева ул, д.23\"","v":"Устье с, Яковлева ул, д.23"},"Устье с, Яковлева ул, д.23",null,null,null,null,null,null,null,{"$f":"\"Устье с, Яковлева ул, д.23\"","v":"Устье с, Яковлева ул, д.23"},null,null,null,null,null,null,null,null,null,null,null,null,null,null,null,null,"Устье с, Яковлева ул, д. 23",null,null,null,null,"Устье с, Яковлева ул, д. 23",null,null,null,null,null,null,null,null,null,null,"Устье с, Яковлева ул, д. 23",null,null,null,null,null,null,"Устье с, Яковлева ул, д. 23",null,null,null,null,null,"Устье с, Яковлева ул, д. 23",null,null,null,null,null,null,null,null,"Устье с, Яковлева ул, д. 23",null,null,null,null,null,"Устье с, Яковлева ул, д. 23",null,null,null,null,null,null,null,"Устье с, Яковлева ул, д. 23",null,null,null,null,null,null,"Устье с, Яковлева ул, д. 23",null,null,null,null,null,null,null,null,"Устье с, Яковлева ул, д. 23",null,null,null,null,"Устье с, Яковлева ул, д. 23",null,null,null,null,null,null,null,null,"Устье с, Яковлева ул, д. 23",null,null,null,null,"Устье с, Яковлева ул, д. 23",null,null,null,null,"Устье с, Яковлева ул, д. 23",null,null,"Устье с, Яковлева ул, д. 23",null,null,null,null,null,null,null,null,null,null,null,null,"Общий счет РО+"]

{"sheet":"Лист2","index":1,"n_rows":84,"n_cols":3,"rows_kept":84,"cut":false,"hidden":false,"merged":[]}
[null,null,"Бережное с, Ветеранов ул, д. 2А"]
[null,null,"Бережное с, Совхозная ул, д. 10"]
[null,null,"Бережное с, Совхозная ул, д. 7"]
[null,null,"Бережное с, Совхозная ул, д. 8"]
[null,null,"Высокое п, Нагорная ул, д. 29"]
[null,null,"Заднее с, Советская ул, д. 1"]
[null,null,"Митенское д, Центральная ул, д. 1"]
[null,null,"Никольское с, Окружная ул, д. 2"]
[null,null,"Никольское с, Окружная ул, д. 4А"]
[null,null,"Никольское с, Окружная ул, д. 4Б"]
[null,null,"Никольское с, Окружная ул, д. 4В"]
[null,null,"Порохово д, Полевая ул, д. 11"]
[null,null,"Устье с, Зеленая ул, д. 13"]
[null,null,"Устье с, Зеленая ул, д. 14"]
[null,null,"Устье с, Зеленая ул, д. 14А"]
[null,null,"Устье с, Зеленая ул, д. 16"]
[null,null,"Устье с, Зеленая ул, д. 16А"]
[null,null,"Устье с, Зеленая ул, д. 17"]
[null,null,"Устье с, Зеленая ул, д. 18"]
[null,null,"Устье с, Зеленая ул, д. 18А"]
[null,null,"Устье с, Зеленая ул, д. 29"]
[null,null,"Устье с, Зеленая ул, д. 7"]
[null,null,"Устье с, Зеленая ул, д. 8"]
[null,null,"Устье с, Коммунаров ул, д. 17"]
[null,null,"Устье с, Коничева ул, д. 3"]
[null,null,"Устье с, Лебедевой ул, д. 10"]
[null,null,"Устье с, Лебедевой ул, д. 2"]
[null,null,"Устье с, Лебедевой ул, д. 6"]
[null,null,"Устье с, Лебедевой ул, д. 9"]
[null,null,"Устье с, Мелиораторов ул, д. 13"]
[null,null,"Устье с, Мелиораторов ул, д. 14А"]
[null,null,"Устье с, Мелиораторов ул, д. 15"]
[null,null,"Устье с, Мелиораторов ул, д. 16А"]
[null,null,"Устье с, Мелиораторов ул, д. 17"]
[null,null,"Устье с, Мелиораторов ул, д. 22А"]
[null,null,"Устье с, Мелиораторов ул, д. 3"]
[null,null,"Устье с, Мелиораторов ул, д. 4"]
[null,null,"Устье с, Мелиораторов ул, д. 5"]
[null,null,"Устье с, Мира ул, д. 3"]
[null,null,"Устье с, Мира ул, д. 3А"]
[null,null,"Устье с, Набережная ул, д. 10"]
[null,null,"Устье с, Набережная ул, д. 12"]
[null,null,"Устье с, Набережная ул, д. 24"]
[null,null,"Устье с, Набережная ул, д. 35"]
[null,null,"Устье с, Набережная ул, д. 37"]
[null,null,"Устье с, Набережная ул, д. 71"]
[null,null,"Устье с, Нагорная ул, д. 5"]
[null,null,"Устье с, Нагорная ул, д. 5А"]
[null,null,"Устье с, Нагорная ул, д. 7"]
[null,null,"Устье с, Нагорная ул, д. 7А"]
[null,null,"Устье с, Нагорная ул, д. 7Б"]
[null,null,"Устье с, Новый пер, д. 1"]
[null,null,"Устье с, Новый пер, д. 3"]
[null,null,"Устье с, Окружная ул, д. 15"]
[null,null,"Устье с, Окружная ул, д. 2А"]
[null,null,"Устье с, Октябрьская ул, д. 22"]
[null,null,"Устье с, Октябрьская ул, д. 50"]
[null,null,"Устье с, Октябрьская ул, д. 52"]
[null,null,"Устье с, Октябрьская ул, д. 61"]
[null,null,"Устье с, Пионерская ул, д. 11"]
[null,null,"Устье с, Пионерская ул, д. 6"]
[null,null,"Устье с, Пионерская ул, д. 7"]
[null,null,"Устье с, Пионерская ул, д. 8"]
[null,null,"Устье с, Профсоюзная ул, д. 51"]
[null,null,"Устье с, Спортивная ул, д. 1"]
[null,null,"Устье с, Спортивная ул, д. 2"]
[null,null,"Устье с, Спортивная ул, д. 3"]
[null,null,"Устье с, Спортивная ул, д. 4"]
[null,null,"Устье с, Спортивная ул, д. 6"]
[null,null,"Устье с, Юбилейная ул, д. 10"]
[null,null,"Устье с, Юбилейная ул, д. 11"]
[null,null,"Устье с, Юбилейная ул, д. 12"]
[null,null,"Устье с, Юбилейная ул, д. 12А"]
[null,null,"Устье с, Юбилейная ул, д. 13"]
[null,null,"Устье с, Юбилейная ул, д. 15"]
[null,null,"Устье с, Юбилейная ул, д. 9"]
[null,null,"Устье с, Яковлева ул, д. 12"]
[null,null,"Устье с, Яковлева ул, д. 13"]
[null,null,"Устье с, Яковлева ул, д. 17"]
[null,null,"Устье с, Яковлева ул, д. 19"]
[null,null,"Устье с, Яковлева ул, д. 19А"]
[null,null,"Устье с, Яковлева ул, д. 21"]
[null,null,"Устье с, Яковлева ул, д. 23"]
[null,null,"Устье с, Яковлева ул, д. 9"]

{"sheet":"Лист3","index":2,"n_rows":0,"n_cols":0,"rows_kept":0,"cut":false,"hidden":false,"merged":[]}